{"text_format":"1","workbook":"xlsx","n_sheets":1,"sheets":["Tabelle1"],"not_rendered":{"charts":0,"images":0,"macros":1,"external_links":0,"defined_names":70,"comments":1,"pivot_tables":0},"unopened":[],"bounds":{"document_bytes":16777216,"sheet_cells":100000,"rows_first":2000,"rows_last":500,"rows_between":2000,"halvings":0,"cell_chars":16384,"cell_head_chars":4096},"cells_cut":0,"cells_raw":0,"read":"whole","date_system":"1900"}

{"sheet":"Tabelle1","index":0,"n_rows":178,"n_cols":69,"rows_kept":178,"cut":false,"hidden":false,"merged":[]}
["OZ","Typ","Beschreibung","Langtext","Menge","Einheit","EP [EUR]","GP [EUR]","TB Anzahl","TB1 Ansprache","TB1 Bietertext","TB1 Absprache","TB2 Ansprache","TB2 Bietertext","TB2 Absprache","TB3 Ansprache","TB3 Bietertext","TB3 Absprache","TB4 Ansprache","TB4 Bietertext","TB4 Absprache","TB5 Ansprache","TB5 Bietertext","TB5 Absprache","TB6 Ansprache","TB6 Bietertext","TB6 Absprache","TB7 Ansprache","TB7 Bietertext","TB7 Absprache","TB8 Ansprache","TB8 Bietertext","TB8 Absprache","TB9 Ansprache","TB9 Bietertext","TB9 Absprache","TB10 Ansprache","TB10 Bietertext","TB10 Absprache","TB11 Ansprache","TB11 Bietertext","TB11 Absprache","TB12 Ansprache","TB12 Bietertext","TB12 Absprache","TB13 Ansprache","TB13 Bietertext","TB13 Absprache","TB14 Ansprache","TB14 Bietertext","TB14 Absprache","TB15 Ansprache","TB15 Bietertext","TB15 Absprache","TB16 Ansprache","TB16 Bietertext","TB16 Absprache","TB17 Ansprache","TB17 Bietertext","TB17 Absprache","TB18 Ansprache","TB18 Bietertext","TB18 Absprache","TB19 Ansprache","TB19 Bietertext","TB19 Absprache","TB20 Ansprache","TB20 Bietertext","TB20 Absprache"]
[null,null,"Freianlagen Kinderspielplatz",null,null,null,null,{"$f":"H4+H36+H49+H84+H96+H126+H134","v":0}]
[null,"I","Leistungsbeschreibung","Leistungsbeschreibung\n\n1\tArt und Umfang der Leistungen\nDie ausgeschriebenen Leistungen umfassen unterschiedliche Garten- und Landschaftsbauarbeiten mit zugehörigen Erdarbeiten zur Erweiterung und Umgestaltung eines Kinderspielplatzes. Das Baugrundstück ist etwa 1.000 m² groß. Außerdem ist ein momentan noch asphaltierter Bürgersteigstreifen an der Straße Weidkamp zu verbreitern und zu pflastern.\n\nÜberschlägiger Arbeitsumfang:\n200 m³ Bodenarbeiten,\n30 t Füll- und Oberbodenlieferung,\n250 m² Wegebau, davon 230 m² Pflaster- und Belagsarbeiten mit rund 100 lfm Bürgersteigerneuerung, 20 m² wassergebundene Decke\n280 m² Spiel- und Fallschutzflächen (Sand, Holzhäcksel),\nmehrere Spielgeräte (insbesondere Ninja-Parcours), 1 überdachter Treffpunkt, sonstige Ausstattungselemente (insbesondere Fahrradparker, Mülleimer, Wegesperren)\n190 m Zaunbau,\n300 m² Rasen,\nBaum- und Strauchpflanzungen\nDie Maßnahme ist in den beigefügten Plänen dargestellt und verortet.\n\n2\tLage und Zufahrt\nDie Baustelle wird von der Armstraße in 45355 Essen auf Höhe von Haus Nr. 12 angedient. Die Armstraße ist von der Straße Weidkamp aus erreichbar.\n\n\n3\tLager- und Arbeitsflächen\nLager- und Arbeitsflächen stehen innerhalb der umzugestaltenden Spielplatzfläche sowie im begrenzten Umfang randlich auf Wiesenflächen in der Grünanlage zur Verfügung.\nBei der Lagerung von Material ist sicher zu stellen, dass keinerlei Stoffe in die Böden eingetragen werden können. Die Materiallagerung ist so durchzuführen, dass die Böden möglichst wenig beeinträchtigt werden. Insbesondere ist sicher zu stellen, dass nach Beendigung der Bauarbeiten keine Materialrückstände in den Böden verbleiben.\n\n4\tStraßen im Baustellenbereich\nÖffentliche Straßen sind mit Armstraße und Weidkamp vorhanden.\n\n5\tVersorgungsanschlüsse\nVersorgungsanschlüsse (Wasser und Strom) sind auf dem Baugrundstück nicht vorhanden.\n\n6\tVorhandene Anlagen im Baustellenbereich\nRandlich der Umgestaltungs- und Neuanlagefläche sind Teile des Spielplatzes vorhanden, die auch während der Bauphase weiterhin genutzt werden.\n\n7\tBoden- und Grundwasserverhältnisse\nIm Baustellenbereich befinden sich überwiegend aufgeschüttete Böden, die mit Bauschuttresten vermengt sind. Es liegt eine gesonderte Untersuchung mit Analysen zu den aufgefüllten Böden vor. Grundwassereinfluss ist in den oberen Metern nicht zu erwarten.\n\n8\tAblauf der Arbeiten\nDer AN kann den Ablauf der Arbeiten selbsttätig in Abstimmung mit der BÜ festlegen. Auf dem Grundstück empfiehlt es sich, die Arbeiten im Norden zu beginnen und sich rückwärts Richtung Süden zur Baustellenzufahrt herauszuarbeiten.\nEntsprechend sind in der Frühphase die Grundzüge zu Geländemodellierungen und Planumsarbeiten herzustellen. Im Anschluss sind die unterschiedlichen Belags-, Schicht- und Substrataufbauten herzustellen.\nBei den Arbeiten zum Aufstellen der Spielgeräte ist zu beachten, dass die Sohle der Sandflächen mit einer Sauberkeitsschicht aus Monokornbeton herzustellen ist. Die Monokornbetonschicht und das finale Anfüllen von Sand, Holzhäcksel können erst nach Einbau der Spielgeräte erfolgen.\nRasenansaaten sind sukzessive im Baufortschritt für weitestgehend fertiggestellte Teilbereiche vorzunehmen, um möglichst früh eine möglichst feste, bespielbare Grasnarbe zu erzielen.\n\n9\tKampfmittel\nIm Rahmen der Bautätigkeiten auf dem Spielplatzflurstück wurde eine entsprechende Anfrage an die Bezirksregierung Düsseldorf gestellt. Die Luftbildauswertung für das in Rede stehende Grundstück hat ergeben, dass es sich um ein sog. Bombenabwurfgebiet handelt. \nEs handelt es sich bei der Baumaßnahme jedoch um einzelne Spielgeräte, die mit Punktfundamenten im Boden verankert werden sollen. Eine größere Fläche ist demnach nicht zu überprüfen. Es kann somit auf eine Flächenuntersuchung verzichtet werden. \nDie Erdarbeiten sind mit entsprechender Vorsicht auszuführen. Konkret heißt das, dass ein schichtweiser Bodenabtrag von max. 50 cm zu erfolgen hat. Außerdem wird eine Beobachtung des Erdreichs hinsichtlich Veränderungen wie z.B. Verfärbungen, Inhomogenitäten empfohlen. Generell sind Bauarbeiten sofort einzustellen, sofern Kampfmittel gefunden werden. In diesem Fall ist die zuständige Ordnungsbehörde, der KBD der Bezirksregierung oder die nächstgelegene Polizeidienststelle unverzüglich zu verständigen.\n\nAllgemeine Hinweise\nVom Auftragnehmer verursachte Schäden an Wegen, vegetationstechnischen oder sonstigen Einrichtungs- oder Ausstattungsgegenständen sind von diesem auf eigene Kosten wieder instandzusetzen.\n\nAlle Leistungen umfassen die Lieferung der dazugehörigen Stoffe und Bauteile einschließlich abladen und lagern auf der Baustelle, wenn in der Leistungsbeschreibung nichts anderes vorgeschrieben ist, sowie die Verwertung bzw. Deponierung unter Anwendung des Kreislaufwirtschaftsgesetzes. Bei der Angabe \"entsorgen\" oder \"zur Deponie transportieren\" in einem Leistungstext ist immer die Entrichtung der Deponiegebühren bzw. der Verwertungskosten Leistungsbestandteil und bei der Kalkulation der Einheitspreise zu berücksichtigen.\nAuf abweichende Regelungen wird im Text ausdrücklich hingewiesen.\n\nWird in Positionen, in denen Fabrikate vorgeschlagen und gleichwertige zugelassen sind, kein Fabrikat eingetragen, so gilt das Vorgeschlagene als angeboten.\n\nDer Auftragnehmer hat die Leistung im eigenen Betrieb auszuführen. Mit schriftlicher Zustimmung des Auftraggebers darf er sie an Nachunternehmer übertragen. Die Zustimmung ist nicht notwendig bei Leistungen, auf die der Betrieb des Auftragnehmers nicht eingerichtet ist (VOB/B § 4 Abs. 8)."]
["01","1","Vorbereitende Arbeiten","Vorbereitende Arbeiten",null,null,null,{"$f":"SUM(H7:H10)+SUM(H12:H21)+SUM(H23:H30)+SUM(H32:H35)","v":0}]
["01.01","2","Vorbereitende Arbeiten","Vorbereitende Arbeiten",null,null,null,{"$f":"SUM(H7:H10)","v":0}]
["01.01.0001","I","Hinweis Transportentfernungen","Hinweis Transportentfernungen\nDie Transportentfernungen innerhalb der Spielpatzerweiterungsfläche betragen bis zu 50 m.\nDie Transportentfernung für das Aufstellen bauseits gestellter Spielgeräte betragen bis zu 300 m.",null,null,null,null,0]
["01.01.0001"," ","Verkehrssicherung, -lenkung","Verkehrssicherung, -lenkung\n\nMaßnahmen zum Aufstellen, Vorhalten und Betreiben von Einrichtungen zur Sicherung und Aufrechterhaltung des öffentlichen und Anliegerverkehrs auf der Baustelle, entsprechend der Schutz- und Sicherheitsmaßnahmen nach den Unfallverhütungsvorschriften, den Bestimmungen der zuständigen Straßenverkehrsbehörde sowie den Richtlinien zur Sicherung von Arbeitsstellen an Straßen (DIN 18299, Ziff.4.2.6 u. 4.2.7), z. B. Bauzäune, Schutzgerüste, Hilfsbauwerke, Beleuchtungen, Leiteinrichtungen, amtl. Verkehrs- und Hinweiszeichen usw., wenn nicht gesondert ausgeschrieben;\n\nDie Unterhaltung der gesamten Verkehrssicherungseinrichtungen, hierzu gehört auch die laufende Säuberung, Erneuerung abgängiger Gelbmarkierungen und Ersatz sämtlicher durch Fremdverschulden zerstörter Sicherungseinrichtungen, obliegt dem Auftragnehmer in vollem Umfang. Sie bezieht sich auch auf alle Samstage sowie Sonn- und Feiertage während der Bauzeit. Nach Beendigung der Bauarbeiten die Einrichtung beseitigen und die benutzten Flächen in den ursprünglichen Zustand versetzen;\n\nArt der Verkehrssicherung/-lenkung:\nSicherung und Lenkung des Verkehrs für die Baustellenzufahrt in der Armstraße und für die Bürgersteigerneuerung Weidkamp\n\nDie geforderte Vergütung für diese Position wird zur Hälfte bei der 1. Abschlagszahlung berücksichtigt. Die Restsumme wird erst nach Abbau und Abfuhr der gesamten Einrichtung mit der Schlussrechnung fällig;\n\nFür die Verkehrssicherung der Baustelle hat der AN vor Baubeginn einen Verkehrssicherungsplan zu erstellen, dem Ordnungsamt der Stadt Essen vorzulegen und eine entsprechende Genehmigung einzuholen. Die Genehmigung ist vor Baustellenbeginn bei BÜ/AG vorzulegen. Eine gesonderte Vergütung für die Einholung der Genehmigung erfolgt nicht.",1,"psch",null,{"$f":"ROUND(E7*G7,2)","v":0},0]
["01.01.0002"," ","Schutzvorrichtung an Bäumen herstellen.","Schutzvorrichtung an Bäumen herstellen.\n\nBaumstamm in geeigneter Weise abpolstern (mit\nFF-Kokofil-Dränrohr o. ä.). Holzbohlen lückenlos\naufrecht um die Polsterung stellen und mit starkem\nDraht unverrückbar und stramm befestigen. Die\nHolzbohlen dürfen nur mit ausreichender Abpolsterung\nauf die Wurzelanläufe aufgesetzt werden.\nBaumschäden, die durch mangelnde Sorgfalt beim\nHerstellen der Schutzeinrichtung entstehen, werden zu\nLasten des Auftragnehmers ausgebessert.",4,"St",null,{"$f":"ROUND(E8*G8,2)","v":0},0]
["01.01.0003"," ","Mobile Baustraße, Kunststoffplatten, B >/= 3 m","Mobile Baustraße, Kunststoffplatten, B >/= 3 m\n\nBaustraße erstellen, für den Zeitraum der Abbruch- und Bauphase vorhalten, nach Abschluss der Maßnahme rückbauen und abfahren;\nMaterial: lastverteilende Kunststoffplatten\neinschl. Planum vor Verlegen der Platten\nBreite: >/= 3 m\nAusführungsbereich: Flächen im Kronentraufbereich des neuen Weges",15,"m",null,{"$f":"ROUND(E9*G9,2)","v":0},0]
["01.01.0004"," ","Bauzaun, H= 2,00 m","Bauzaun, H= 2,00 m\n\nBauzaun (mobil), aus Stahlelementen\nmit Rundstahlfüllstäben,\nStützfüßen aus Beton,\neinschl. sämtlicher Verbindungen,\nKupplungen etc. liefern, aufstellen.\nJedes dritte Feld ist durch Erdnägel zu sichern;\nsämtliche Felder sind miteinander fest durch\nVerschraubungen und Kupplungen zu verbinden.\nZaun für die Dauer der Bauarbeiten vorhalten,\nnach Abschluss der Bauarbeiten wieder abbauen und\nordnungsgemäß verwerten;\nHöhe: 200 cm\nAbrechnung nach Aufmaß der auf der Baustelle aufgestellten Zaunelemente.\nAusführung nach Freigabe durch AG / BÜ",245,"m",null,{"$f":"ROUND(E10*G10,2)","v":0},0]
["01.02","2","Rodung, organisches Material","Rodung, organisches Material",null,null,null,{"$f":"SUM(H12:H21)","v":0}]
["01.02.0001"," ","Rasen mähen","Rasen mähen,\n\nAufwuchs: Gräser und Kräuter,\nAufwuchshöhe: bis 15 cm;\nBöschungsneigung: eben bis 1:4\nMahdgut aufnehmen, abfahren und ordnungsgemäß verwerten/entsorgen;\n\nAusführungsbereich: umzugestaltende Spielplatzfläche\n\nAbrechnung nach Aufmaß der Fläche.",750,"m2",null,{"$f":"ROUND(E12*G12,2)","v":0},0]
["01.02.0002"," ","Grasnarben-Wurzelfilz abtragen, D = 10 cm","Grasnarben-Wurzelfilz abtragen, D = 10 cm\n\nGrasnarben-Wurzelfilz abtragen und entsorgen.\nAbtragsdicke: 10 cm\nAbtrag in Teilflächen, Abtragsflächen nach örtlicher Anweisung der BÜ",50,"m3",null,{"$f":"ROUND(E13*G13,2)","v":0},0]
["01.02.0003","I","Flächenbewuchs nach m², Hecken nach m roden","Flächenbewuchs nach m², Hecken nach m roden\n\nAnmerkung\nGehölze jeglicher Art mit Wurzelwerk roden.\nStammdurchmesser: bis 10 cm.\nRodungsgut zur Deponie transportieren, wenn im\nLeistungsverzeichnis (Baubeschreibung/Vorbemerkung)\nnichts anderes gefordert wird. Das Aufmaß erfolgt vor\nArbeitsbeginn.",null,null,null,null,0]
["01.02.0003"," ","Flächenbewuchs roden, Höhe bis 130 cm.","Flächenbewuchs roden, Höhe bis 130 cm.\n\nFlächenbewuchs, Gehölze jeglicher Art, roden.\nHöhe: bis 130 cm.\nRodungsbreite ca. </= 50 cm, Rodungslänge. ca. 30 m\nAusführungsbereich: Bürgersteigverbreiterung Weidkamp,",15,"m2",null,{"$f":"ROUND(E15*G15,2)","v":0},0]
["01.02.0004"," ","Flächenbewuchs roden, Höhe von 701-800 cm.","Flächenbewuchs roden, Höhe von 701-800 cm.\n\nFlächenbewuchs, Gehölze jeglicher Art, roden und\nabtransportieren.\nHöhe: über 700 cm bis 800 cm.\nAusführungsbereich: Aufwärmstationen",20,"m2",null,{"$f":"ROUND(E16*G16,2)","v":0},0]
["01.02.0005","I","Gehölze schneiden, Lichtraumprofilschnitt","Gehölze schneiden, Lichtraumprofilschnitt\n\nGehölze jeglicher Art bis 10 cm Astdurchmesser, schneiden, ohne Roden der Wurzelstöcke.\nDas anfallende Holzwird Eigentum des AN und ist zu entsorgen, wenn im Leistungstext (Baubeschreibung/Vorbemerkung) nichts anderes gefordert wird.\nDas Aufmaß erfolgt vor Arbeitsbeginn.",null,null,null,null,0]
["01.02.0005"," ","Lichtraumprofilschnitt, bis 250 cm","Lichtraumprofilschnitt, bis 250 cm\n\nGehölze jeglicher Art, schneiden, Lichtraumprofilschnitt \nHöhe: bis 250 cm.\nAusführungsbereich: Eibe am Rand der Aufwärmstationen",6,"m",null,{"$f":"ROUND(E18*G18,2)","v":0},0]
["01.02.0006","I","Baumstubben entfernen","Baumstubben entfernen\n\nAnmerkung\nBaumstubben jeglicher Art an unterschiedlichen\nStandorten vollständig entfernen, d.h. oberirdische\nTeile (inkl. evtl. vorhandener Stockausschläge) ab- und\nunterirdische Teile mit geeignetem Gerät ausfräsen oder\nausbaggern. Fräsgut oder ausgebaggerten Stubben laden\nund zur Deponie transportieren.\nEntstandene Löcher mit Oberboden gemäß DIN 18915 bis\nPlanumhöhe verfüllen und verdichten, wenn nichts\nanderes in den speziellen Anmerkungen zum Bauvorhaben\ngefordert wird.\nAbgerechnet wird nach cm Gesamtfräsleistung verteilt\nauf mehrere Stubben an verschiedenen Standorten\n(hierbei ist die Berechnungsgrundlage der Durchmesser\ndes bodenabgesägten Baumstubbens) oder Anzahl der\nausgebaggerten Stubben, gestaffelt nach Durchmesser des\nWurzeltellers. Das Aufmaß erfolgt vor Arbeitsbeginn.",null,null,null,null,0]
["01.02.0006"," ","Baumstubben ausbaggern, ø bis 100 cm.","Baumstubben ausbaggern, ø bis 100 cm.\n\nKompletten Baumstubben mit (hochstehendem) Wurzelteller\nausbaggern, laden und entsorgen.\nDurchmesser des Wurzeltellers: bis 100 cm.",4,"St",null,{"$f":"ROUND(E20*G20,2)","v":0},0]
["01.02.0007"," ","Baumstubben ausbaggern, ø von 101-150 cm.","Baumstubben ausbaggern, ø von 101-150 cm.\n\nKompletten Baumstubben mit (hochstehendem) Wurzelteller\nausbaggern, laden und entsorgen.\nDurchmesser des Wurzeltellers: über 100 bis 150 cm.",2,"St",null,{"$f":"ROUND(E21*G21,2)","v":0},0]
["01.03","2","Abbruch, Demontage und Zwischenlagerung","Abbruch, Demontage und Zwischenlagerung",null,null,null,{"$f":"SUM(H23:H30)","v":0}]
["01.03.0001"," ","Hochbordsteine ausbauen","Hochbordsteine ausbauen\n\nHochbordsteine ausbauen, einschl. Fundament und Rückenstütze,\nMaterial laden und zwischenlagern, für Abfuhr gemäß gesonderter Position\nAusführungsbereich. Bordsteinabsenkung",7,"m",null,{"$f":"ROUND(E23*G23,2)","v":0},0]
["01.03.0002"," ","Asphaltschicht abtragen","Asphaltschicht abtragen\n\nVorhandene Asphaltschicht bis zu einer Tiefe von ca. 6-10 cm fachgerecht abtragen, Material laden, transportieren und zur Abfuhr gemäß gesonderter Position zwischenlagern.\n\nAusführungsbereich: Bürgersteig Weidkamp\n\nAusführung nach Asphaltschnitt zu Erhaltflächen gemäß gesonderter Position in Titel Befestigte Flächen",130,"m2",null,0,0]
["01.03.0003"," ","Stabgitterzaun abbrechen","Stabgitterzaun abbrechen\n\nStabgitterzaun abbrechen, einschließlich Pfosten und Fundamentierung,\nZaunhöhe: bis 1,0 m\nPfostenfundamente abtrennen, Materialien sortieren,\nMaterial laden, transportieren und zur Abfuhr gemäß gesonderter Position zwischenlagern.",78,"m",null,0,0]
["01.03.0004"," ","Hochbordstein 15/18 abbrechen","Hochbordstein 15/18 abbrechen, \n\neinschl. Fundament und Rückenstütze\nMaterial laden, transportieren und zur Abfuhr gemäß gesonderter Position zwischenlagern.",7,"m",null,0,0]
["01.03.0005"," ","Stahlgeländer abbrechen","Stahlgeländer abbrechen\n\nStahlgeländer abbrechen, einschließlich Pfosten und Fundamentierung,\nGeländerhöhe: bis 0,4 m\nPfostenfundamente abtrennen, Materialien sortieren,\nMaterial laden, transportieren und zur Abfuhr gemäß gesonderter Position zwischenlagern.",53,"m",null,0,0]
["01.03.0006"," ","Drängelgitter abbrechen","Drängelgitter abbrechen\n\nDrängelgitter abbrechen, einschließlich Pfosten und Fundamentierung,\nLänge: bis 2 m\nPfostenfundamente abtrennen, Materialien sortieren,\nMaterial laden, transportieren und zur Abfuhr gemäß gesonderter Position zwischenlagern.",2,"St",null,0,0]
["01.03.0007"," ","Fallschutzbelag Rasengittergummigranulatplatte abbrechen","Fallschutzbelag Rasengittergummigranulatplatte abbrechen\n\nAbtragsdicke: </= 7 cm\nFüllmaterial  aussortieren, Fallschutzmaterial laden, transportieren und zur Abfuhr gemäß gesonderter Position zwischenlagern.",7,"m2",null,0,0]
["01.03.0008"," ","Stahlschaukel, mit A-Pfosten, Doppelschaukel, Schaukelhöhe","Stahlschaukel, mit A-Pfosten, Doppelschaukel, Schaukelhöhe \n\nca. 2,5 m, einschl. Fundamenten ausbauen und  im Baustellenbereich zwischenlagern, für Wiederaufbau gemäß gesonderter Position",1,"St",null,0,0]
["01.04","2","Abfuhr und Entsorgung","Abfuhr und Entsorgung",null,null,null,{"$f":"SUM(H32:H35)","v":0}]
["01.04.0001"," ","Bauschutt abfahren und entsorgen","Bauschutt abfahren und entsorgen\n\nZwischengelagertes Material Beton und Bauschutt mit Feinbestandteilen laden, abfahren und fachgerecht entsorgen\nAbfallnummer: 170101\n\nAbrechnung nach Wiegekarten / Entsorgungsnachweis",3.5,"t",null,{"$f":"ROUND(E32*G32,2)","v":0},0]
["01.04.0002"," ","Asphalt, teerfrei, wiederverwertbar abfahren und entsorgen","Asphalt, teerfrei, wiederverwertbar abfahren und entsorgen\n\nZwischengelagertes Material Asphalt, teerfrei, wiederverwertbar laden, abfahren und fachgerecht entsorgen\nPAK-Gehalt: < 25 mg/kg\nPhenolindex: < 0,1 mg/l\nVerwertungsklasse gemäß RuVAStB 01 (2005): A\nAbfallnummer: 170302\n\nAbrechnung nach Wiegekarten / Entsorgungsnachweis",30,"t",null,{"$f":"ROUND(E33*G33,2)","v":0},0]
["01.04.0003"," ","Gemischte Metalle abfahren und entsorgen","Gemischte Metalle abfahren und entsorgen\n\nZwischengelagertes Material gemischte Metalle, laden, abfahren und fachgerecht entsorgen\nAbfallnummer: 170407\n\nAbrechnung nach Wiegekarten / Entsorgungsnachweis",1120,"kg",null,{"$f":"ROUND(E34*G34,2)","v":0},0]
["01.04.0004"," ","Gemischte Bau- und Abbruchabfälle abfahren und entsorgen","Gemischte Bau- und Abbruchabfälle abfahren und entsorgen\n\nZwischengelagertes Material gemischte Bau- und Abbruchabfälle, laden, abfahren und fachgerecht entsorgen\nAbfallnummer: 170904\n\nAbrechnung nach Wiegekarten / Entsorgungsnachweis",2,"m3",null,{"$f":"ROUND(E35*G35,2)","v":0},0]
["02","1","Bodenarbeiten für bautechnische Zwecke","Bodenarbeiten für bautechnische Zwecke",null,null,null,{"$f":"SUM(H39:H41)+SUM(H44:H48)","v":0}]
["02.01","I","Hinweis Transportentfernungen","Hinweis Transportentfernungen\n\nDie Transportentfernungen innerhalb der Spielpatzerweiterungsfläche betragen bis zu 50 m.\nDie Transportentfernung für das Aufstellen bauseits gestellter Spielgeräte betragen bis zu 300 m.",null,null,null,null,0]
["02.01","2","Bodenabtrag und Zwischenlagerung","Bodenabtrag und Zwischenlagerung",null,null,null,{"$f":"SUM(H39:H41)","v":0}]
["02.01.0001"," ","Boden abtragen, für Abfuhr","Boden abtragen, für Abfuhr\n\nBoden abtragen, laden, fördern und zwischenlagern;\nAbtrag lagenweise bis maximal 20 cm (nach Abtrag der 10 cm dicken Grasnarben-Wurzelfilzschicht) durchführen,\nfür spätere Abfuhr gemäß gesonderter Position\n\nUmrechnungsfaktor: 1,8 t/m³\nZwischenlagerung auf messbaren geometrischen Körpern\n",160,"m3",null,{"$f":"ROUND(E39*G39,2)","v":0},0]
["02.01.0002"," ","Tragschichtmaterial abtragen, für Wiedereinbau","Tragschichtmaterial abtragen, für Wiedereinbau\n\nTragschichtmaterial abtragen, laden, fördern und zwischenlagern;\nfür Wiedereinbau\n\nAusbauort: unter Schwarzdecke des Bürgersteiges\nMaterialzusammensetzung: Schlacke, Kies, schwach sandig, schwach schluffig\nBodengutachterliche Einteilung : \nRC-2 Bundesboden- und Ersatzbaustoffverordnung (EBV)\n\nUmrechnungsfaktor: 1,8 t/m³\nZwischenlagerung auf messbaren geometrischen Körpern\n",21,"m3",null,{"$f":"ROUND(E40*G40,2)","v":0},0]
["02.01.0003"," ","Tragschichtmaterial abtragen, für Abfuhr","Tragschichtmaterial abtragen, für Abfuhr\n\nTragschichtmaterial abtragen, laden, fördern und zwischenlagern;\nAbtrag lagenweise durchführen,\nfür spätere Abfuhr gemäß gesonderter Position\n\nAusführungsbereich: zum Teil Tragschicht des Bürgersteiges, Hochofenstückschlacke HOS-1\n\nUmrechnungsfaktor: 1,8 t/m³\nZwischenlagerung auf messbaren geometrischen Körpern",21,"m3",null,{"$f":"ROUND(E41*G41,2)","v":0},0]
["02.02","2","Bodenabfuhr","Bodenabfuhr",null,null,null,{"$f":"SUM(H44:H48)","v":0}]
["02.02.0001","I","Hinweis zur Klassifizierung des abzufahrenden Materials:","Hinweis zur Klassifizierung des abzufahrenden Materials:\n\nDie nachfolgenden Klassifizierungen zu Verwertungs- und Entsorgungsklassen sind den projektspezifisch erstellten Bodenanalytiken entnommen. Sie können vom Bieter als Kalkulationshilfe verwendet werden.",null,null,null,null,0]
["02.02.0001"," ","Zwischengelagertes Material Boden und Bauschutt laden","Zwischengelagertes Material Boden und Bauschutt laden.",326,"t",null,{"$f":"ROUND(E44*G44,2)","v":0},0]
["02.02.0002"," ","seitlich gelagerter Aushub für Spielgerätefundamente","seitlich gelagerter Aushub für Spielgerätefundamente",15,"t",null,{"$f":"ROUND(E45*G45,2)","v":0},0]
["02.02.0003"," ","Abfuhr Boden, bis BM-F1","Abfuhr Boden, bis BM-F1\n\nAufgeladenes Bodenmaterial abfahren und fachgerecht verwerten / entsorgen\n\nMaterialzusammensetzung: Auffüllung; Grobschluff, feinsandig, kiesig, Kieskorn, z.T. Felsstücke, Bauschutt\nAbrechnung nach Wiegekarten / Entsorgungsnachweis\nUmrechnungsfaktor 1,8 t/m³\n\nAusführungsbereich: Ninja-Geräte und Wege flächiger Bodenabtrag der oberen Schichten, Ninja-Geräte und Treffpunkt Fundamentaushub\n\nBodengutachterliche Einteilung : \nbis BM-F1 Bundesboden- und Ersatzbaustoffverordnung (EBV)\n\nAbfallnummer: 17 05 04",271,"t",null,{"$f":"ROUND(E46*G46,2)","v":0},0]
["02.02.0004"," ","Aushub für Schaukelstandort, BM-F2","Aushub für Schaukelstandort, BM-F2\n\nüberwiegend Aushub für Auskofferungsbereich neuer Schaukelstandort\n\nMaterialzusammensetzung: Auffüllung; Grobschluff, kiesig, kiesig, Kieskorn, Bauschutt\n\nBodengutachterliche Einteilung : \nBM-F2 Bundesboden- und Ersatzbaustoffverordnung (EBV)",32,"t",null,{"$f":"ROUND(E47*G47,2)","v":0},0]
["02.02.0005"," ","Abfuhr Tragschichtgemisch, HOS-1","Abfuhr Tragschichtgemisch, HOS-1\n\nAufgeladenes Tragschichtmaterial abfahren und fachgerecht verwerten / entsorgen\n\nAusführungsbereich: zum Teil Tragschicht des Bürgersteiges, schlackehaltig\n\nMaterialzusammensetzung: Auffüllung; Schlacke, Kies\n\nAbrechnung nach Wiegekarten / Entsorgungsnachweis\nUmrechnungsfaktor 1,8 t/m³\n\nBodengutachterliche Einteilung: \nHOS-1 Bundesboden- und Ersatzbaustoffverordnung (EBV)\n\nAbfallnummer: 17 05 04",38,"t",null,{"$f":"ROUND(E48*G48,2)","v":0},0]
["03","1","Befestigte Flächen","Befestigte Flächen",null,null,null,{"$f":"SUM(H61:H68)+SUM(H71:H78)+SUM(H80:H83)","v":0}]
["03.01","I","Hinweis Transportentfernungen","Hinweis Transportentfernungen\n\nDie Transportentfernungen innerhalb der Spielpatzerweiterungsfläche betragen bis zu 50 m.\nDie Transportentfernung für das Aufstellen bauseits gestellter Spielgeräte betragen bis zu 300 m.",null,null,null,null,0]
["03.01","I","Hinweise zu Lieferung und Ausführung:",null,null,null,null,null,0]
["03.01","I","Normen und Richtlinien:","Normen und Richtlinien:\n\nFolgende Normen und Richtlinien sind anzuwenden:\nDIN EN 1340 Bordsteine aus Beton,\nDIN EN 1338 Pflastersteine\nDIN EN 1339 Platten\nDIN 18318\nZTV P-StB, ZTVE-Stb, ZTVT-Stb, ZTVV-StB, TL Min-StB, ZTV Asphalt StB, ZTV SoB-StB, TLGestein-StB, TL Bitumen-StB, TL-BE-StB, (jeweils in der gültigen Fassung).\n\nMerkblatt für Flächenbefestigungen mit Pflaster- und Plattenbelägen in der gültigen Fassung.\n\nRichtlinien für die Standardisierung des Oberbaus von Verkehrsflächen RStO 12.\n\nZusätzliche Technische Vertragsbedingungen für den Bau von Wegen und Plätzen außerhalb von Flächen des Straßenverkehrs ZTV-Wegebau, Ausgabe 2022.\n\nRichtlinien für Planung, Bau und Instandhaltung von begrünbaren Flächenbefestigungen, Ausgabe 2018\n\nEmpfehlungen für Planung, Bau und Instandhaltung der Übergangsbereiche von Freiflächen zu Gebäuden, Ausgabe 2012",null,null,null,null,0]
["03.01","I","Maßtoleranzen und Steinschnitt:","Maßtoleranzen und Steinschnitt:\n\nAufgrund der zulässigen Maßtoleranzen von Betonpflastersteinen und -platten ist unter Beachtung der geforderten Verlegebreiten bei Pflaster- und Plattenbelägen der exakte Abstand der Randeinfassungen oder anderer Begrenzungen durch Auslegen einzelner Stein-, Plattenreihen vor dem Setzen der Einfassungen zu ermitteln, so dass das Schneiden von Belägen vermieden bzw. minimiert wird.",null,null,null,null,0]
["03.01","I","Maßtoleranzen und Bestellung/Fertigung:","Maßtoleranzen und Bestellung/Fertigung\n\nDie nachstehend beschriebenen Einzelbaustoffe, welche mit Maßangaben bzw. Baugrößen ausgeschrieben sind, können gewisse Toleranzen aufweisen und sind erst nach genauem Aufmaß zu bestellen bzw. zu fertigen.",null,null,null,null,0]
["03.01","I","Verlegung an Schnur und Fugenbild:","Verlegung an Schnur und Fugenbild:\n\nDie in den Einzelpositionen genannten Rastermaße und Fugenbreiten sind einzuhalten. Bei durchgehenden Fugen von mehr als 5 Metern Länge ist spätestens jede dritte Reihe an der Schnur auszurichten.",null,null,null,null,0]
["03.01","I","Schalung der Rückenstützen:","Schalung der Rückenstützen:\n\nDie Rückenstützen der Betonfundamente von sämtlichen Einfassungssteinen und Randeinfassungen der befestigten Flächen sind mit Hilfe von Schalbrettern herzustellen.",null,null,null,null,0]
["03.01","I","Filterstabile Schichtung und Entwässerung:","Filterstabile Schichtung und Entwässerung:\n\nDer AN hat sicherzustellen, dass beim Schichtaufbau für befestigte Flächen die ungebundenen Schichten filterstabil zueinander ausgebildet werden, so dass schädliche Verlagerungen von Schicht- und Fugenmaterial ausgeschlossen sind. Der AN hat den filterstabilen Aufbau auf besonderes Verlangen gegenüber dem AG nachzuweisen. Ein Anspruch auf gesonderte Vergütung besteht nicht.",null,null,null,null,0]
["03.01","I","Herstellung Drainmörtel:","Herstellung Drainmörtel:\n\nDer in den nachfolgenden Positionen ausgeschriebene Drainmörtel ist wie folgt herzustellen:\nMonokorn Mörtel aus Splitt 2-5 mm oder 4-8 mm im Verhältnis 4:1 mit Trass-Zement erdfeucht mischen.",null,null,null,null,0]
["03.01","2","Vorbereitung der Untergründe, Frostschutz- und Tragschichten","Vorbereitung der Untergründe, Frostschutz- und Tragschichten",null,null,null,{"$f":"SUM(H61:H68)","v":0}]
["03.01.0001","I","Vorbereitung der Untergründe","Vorbereitung der Untergründe",null,null,null,null,0]
["03.01.0001"," ","Planum herstellen für befestigte Flächen","Planum herstellen für befestigte Flächen\n\nPlanum herstellen\nfür zukünftige befestigte Flächen\nAuf- und Abtrag: bis 5 cm,\nzulässige Abweichung von der Nennhöhe\n+/- 2 cm,\nüberschüssigen Material im Bereich der Baustelle einplanieren.",300,"m2",null,{"$f":"ROUND(E61*G61,2)","v":0},0]
["03.01.0002"," ","Untergrund verdichten für befestige Flächen","Untergrund verdichten für befestige Flächen\n\nUntergrund verdichten im Bereich zukünftiger befestigter Flächen\nVerdichtungsgrad DPr 100 %,\nVerformungsmodul EV2 mind. 45 MPa,\nBodenklasse 3 und 4 DIN 18 300\n\nAusführungsbereich: neue befestigte Flächen und Nachverdichtung von bereits vorhandenen Tragschichten mit neuem Belag",300,"m2",null,{"$f":"ROUND(E62*G62,2)","v":0},0]
["03.01.0003","I","Tragschichten, Ausgleichsschichten , Deckschichten","Tragschichten, Ausgleichsschichten , Deckschichten",null,null,null,null,0]
["03.01.0003"," ","Tragschicht Wiedereinbau","Tragschicht Wiedereinbau\n\nzwischengelagerte Schottertragschicht laden, transportieren und einbauen,\nfür begehbare Wegeflächen, Belastungsklasse N 1 ZTV-Wegebau\nVerformungsmodul EV2: mind. 100 MN/qm,",21,"m3",null,{"$f":"ROUND(E64*G64,2)","v":0},0]
["03.01.0004"," ","Tragschicht STS, HKS 0/45 liefern und einbauen, BK0,3 / N3","Tragschicht STS, HKS 0/45 liefern und einbauen, BK0,3 / N3\n\nTragschicht STS, HKS 0/45 liefern und einbauen, Nutzungskategorie N3 ZTV-Wegebau, Bk 0,3 RStO12 \nfür befahrbare Flächen mit Fahrzeugen bis 20 t zulässiges Gesamtgewicht,\nTragschichtdicke: 15 cm für wassergebundene Decken im Spielplatzbereich außerhalb der Kronentraufen, 30 cm unter Pflaster\nVerformungsmodul EV2: mind. 120 MPa / 120 MN/qm",110,"t",null,{"$f":"ROUND(E65*G65,2)","v":0},0]
["03.01.0005"," ","Tragschicht STS, HKS 0/45 liefern und einbauen, N 1","Tragschicht STS, HKS 0/45 liefern und einbauen, N 1\n\nTragschicht STS, HKS 0/45 liefern und einbauen, Nutzungskategorie N1 ZTV-Wegebau\nfür begehbare Flächen, unter Schotterrrasen\nTragschichtdicke: 15 cm \nVerformungsmodul EV2: mind. 100 MPa / 100 MN/qm",15,"t",null,{"$f":"ROUND(E66*G66,2)","v":0},0]
["03.01.0006"," ","Ausgleichsschicht HKS 0/16, D = 6 cm","Ausgleichsschicht HKS 0/16, D = 6 cm\n\nAusgleichsschicht für wassergebundenen Wegedecke,\naus HKS 0/16,\nauf Tragschicht herstellen und verdichten,\nVerdichtungsgrad: DPr mind. 103 %,\nSchichtdicke im verdichteten Zustand: 6 cm\nEinbau auf Tragschicht.\n\nEinbauort: wassergebundene Wegedecken\n\nAbrechnung nach Aufmaß, Lieferschein ist vorzulegen\nUmrechnungsfaktor im eingebauten Zustand: 2,0 t/m³.",2,"t",null,{"$f":"ROUND(E67*G67,2)","v":0},0]
["03.01.0007"," ","Deckschicht wassergebundene Decke","Deckschicht wassergebundene Decke\n\nDeckschicht der wassergebundenen Decke aus\nDolomit-Edelbrechsand 0/5 bis 0/6\nauf Ausgleichsschicht liefern, profilgerecht einbauen, wässern und walzen,\nSchichtdicke in verdichtetem Zustand: 2 cm\nUnebenheiten der Oberfläche max. 2 cm Abweichung\ninnerhalb einer 4 m Messstrecke.\nFarbe: braun-beige\n\nAbrechnung nach Aufmaß, Lieferschein ist vorzulegen\nUmrechnungsfaktor im eingebauten Zustand: 1,6 t/m³.\n\nAngebotener Hersteller:\n\n\n'.........................................'\u000b(vom Bieter anzugeben)\n\nangebotenes/r Produkt/Typ:\n\n\n'.........................................'\u000b(vom Bieter anzugeben)\n\nEs ist nur ein Produkt / Typ zu benennen. Es ist zwingend erforderlich, dass bei Abweichung von der Qualitätsfixierung die Angaben zum \"Hersteller\" und \"Produkt/Typ\" in die dafür vorgesehenen Zeilen vollständig eingetragen werden.",15,"m2",null,{"$f":"ROUND(E68*G68,2)","v":0},2,null,null,"\n",null,null,"\n"]
["03.02","2","Randeinfassungen","Randeinfassungen",null,null,null,{"$f":"SUM(H71:H78)","v":0}]
["03.02.0001","I","Hinweis:","Hinweis:\n\nwassergebundene Wege im Kronentraufbereich von vorhandenen Bäumen sind ohne Randeinfassungen herzustellen.\nSchnittmaßnahmen in Randeinfassungen werden im Untertitel Pflaster- und Plattenflächen abgerechnet",null,null,null,null,0]
["03.02.0001"," ","Tiefbord absenken","Tiefbord absenken\n\nTiefbord 100/25/8 absenken,\nEinbau auf Betonfundamenten C20/25, Fundamentdicke 15 cm\nAusführungsbereich: neue Wegezugänge, Fahrradparker",15,"m",null,{"$f":"ROUND(E71*G71,2)","v":0},0]
["03.02.0002"," ","Ertüchtigung Rückenstütze","Ertüchtigung Rückenstütze\n\nErtüchtigung Rückenstütze an vorhandenem Tiefbord durchführen\nVerlängerung der Rückenstütze bis ca. 0,5 m unter GOK\nMaterial: Beton C16/20\nDicke der Rückenstütze 15 cm\nAusführungsbereich: geneigt, als ertüchtigte Randeinfassung eines neu geplanten Fallschutzbereiches an einem vorhandenen Weg\neinschließlich des erforderlichen Bodenaushubs, Bodenabfuhr erfolgt gemäß gesonderter Position",10,"m",null,0,0]
["03.02.0003"," ","Hochbordübergangsstein rechts 1 m","Hochbordübergangsstein rechts 1 m\n\nHochbordübergangsstein für Einfahrten, rechts liefern und herstellen\n\nRandeinfassung aus Hochbordstein,\ngem. DIN EN 1340 und DIN 483 TB, \n\nProdukt: Hochbordübergangsstein Beton, rechts\nLänge: 1 m\nFormat: 12/15 cm\nfür Übergang auf Rundbordstein 15/22 r= 2 cm\nAnsichtsfläche: Perltonquarz ausgewaschen, grau\nBetonfundament: herstellen gemäß Anforderungen für Fundament und Rückenstütze, \nBelastungsklasse BK0,3 RStO12:\nBetonqualität C20/25, Dicke Fundament 20 cm, einseitige Rückenstütze, Dicke auf ganzer Höhe 15 cm",1,"m",null,0,0]
["03.02.0004"," ","Hochbordübergangsstein links1 m","Hochbordübergangsstein links1 m\n\nHochbordübergangsstein für Einfahrten, links liefern und herstellen\nRandeinfassung aus Hochbordstein,\ngem. DIN EN 1340 und DIN 483 TB, \n\nProdukt: Hochbordübergangsstein Beton, rechts\nLänge: 1 m\nFormat: 12/15 cm\nfür Übergang auf Rundbordstein 15/22 r= 2 cm\nAnsichtsfläche: Perltonquarz ausgewaschen, grau\nBetonfundament: herstellen gemäß Anforderungen für Fundament und Rückenstütze, \nBelastungsklasse BK0,3 RStO12:\nBetonqualität C20/25, Dicke Fundament 20 cm, einseitige Rückenstütze, Dicke auf ganzer Höhe 15 cm",1,"m",null,0,0]
["03.02.0005"," ","Rundbord r=2, 100x15x22 cm","Rundbord r=2, 100x15x22 cm\n\nRundbord r=2, 100x15x22 cm liefern und herstellen\nRandeinfassung aus Rundbordstein,\ngem. DIN EN 1340 und DIN 483 RB, Typ D-T-I\n\nProdukt: Rundbordstein Beton,\nFormat: 100x12/15x25 cm\nRadius: 2 cm\nAnsichtsfläche: Perltonquarz ausgewaschen, grau\nBetonfundament: herstellen gemäß Anforderungen für Fundament und Rückenstütze von Einfassungen, Belastungsklasse BK0,3 RStO12:\nBetonqualität C20/25, Dicke Fundament 20 cm, einseitige Rückenstütze, Dicke auf ganzer Höhe 15 cm",5,"m",null,0,0]
["03.02.0006"," ","Randeinfassung Tiefbord 100x20x8, Bk 0,3","Randeinfassung Tiefbord 100x20x8, Bk 0,3\n\nRandeinfassung aus Tiefbordstein,\ngem. DIN EN 1340 und DIN 483 TB, mit Fase,\nliefern und herstellen.\nProdukt: Tiefbordstein Beton, Standard\nFormat: 100x20x8cm\nFarbton: naturgrau\nBetonfundament: herstellen gemäß Anforderungen für Fundament und Rückenstütze von Einfassungen, ZTV-Wegebau, für Bk0,3:\nBeton C20/25, Dicke Fundament 20 cm,\nmit einseitiger Rückenstütze,\nDicke auf ganzer Höhe 15 cm,\nOberfläche der Rückenstütze abgeschrägt\nAnschluss der Rückenstütze 5 cm unter OK Vegetationstragschicht/OK Gelände, 10 cm unter OK angrenzende zukünftige Pflasterfläche (jeweils bezogen auf Hochpunkt der abgeschrägten Oberfläche).\nBündig zu angrenzenden Pflasterflächen:\nHerstellen der Geländeanschlüsse gem. Ausführungsplan.\neinschließlich erforderlicher Bodenverdrängungen\n\nAusführungsbereich: Bürgersteig Weidkamp",115,"m",null,0,0]
["03.02.0007"," ","Randeinfassung Tiefbord 100x20x8, N 1","Randeinfassung Tiefbord 100x20x8, N 1\n\nRandeinfassung aus Tiefbordstein,\ngem. DIN EN 1340 und DIN 483 TB, mit Fase,\nliefern und herstellen.\nProdukt: Tiefbordstein Beton, standard\nFormat: 100x20x8cm\nFarbton: naturgrau\nBetonfundament: herstellen gemäß Anforderungen für Fundament und Rückenstütze von Einfassungen, ZTV-Wegebau ,, für Nutzungskategorie N 1:\nBeton C20/25, Dicke Fundament 10 cm,\nmit einseitiger Rückenstütze,\nDicke auf ganzer Höhe 15 cm,\nOberfläche der Rückenstütze abgeschrägt\nAnschluss der Rückenstütze 5 cm unter OK Vegetationstragschicht/OK Gelände, 10 cm unter OK angrenzende zukünftige Pflasterfläche (jeweils bezogen auf Hochpunkt der abgeschrägten Oberfläche).\nBündig zu angrenzenden Pflasterflächen:\nHerstellen der Geländeanschlüsse gem. Ausführungsplan.\neinschließlich erforderlicher Bodenverdrängungen\n\nAusführungsbereich: Fahrradparker",7,"m",null,0,0]
["03.02.0008"," ","Randeinfassung Betonrechteckpflaster 24/16/14","Randeinfassung Betonrechteckpflaster 24/16/14\n\nRandeinfassung nach Merkblatt für Flächenbefestigungen\nmit Pflaster- und Plattenbelägen und nach Herstellerangaben, aus Pflastersteinen aus Beton gem. DIN EN 1338/DIN EN 1339, mit Mikrofase, liefern und herstellen;\nRastermaß: 24 x 16 cm\nSteindicke: 14 cm\nFarbton: naturgrau\nBetonfundament: herstellen gemäß Anforderungen für Fundament und Rückenstütze von Einfassungen, ZTV-Wegebau Nutzungskategorie N 3:C20/25, \nDicke Fundament 15 cm, Breite der Rückenstütze 15 cm\nVerlegeart: 1-zeilig als 16 cm breite Läuferschicht \n\nAusführungsbereich: Wegeeinfassung des gepflasterten Spielplatzweges\nAusführung überwiegend in geschwungenen Bereichen\n\nAngebotenes Produkt:\n\n\n-------------------------------\n(vom Bieter einzutragen)\n'...'",50,"m",null,0,1]
["03.03","2","Pflaster- und Plattenflächen","Pflaster- und Plattenflächen",null,null,null,{"$f":"SUM(H80:H83)","v":0}]
["03.03.0001"," ","Schnittmassnahmen bis 8 cm in Betonstein und Natursteinpflasterbelägen","Schnittmassnahmen bis 8 cm in Betonstein und Natursteinpflasterbelägen\n\nSchnittmassnahmen, in Betonstein und Natursteinpflasterbelägen, Naßschneidegerät mit diamantbesetztem Sägeblatt, Schnitttiefe bis 8 cm, gerader und schräger Schnitt.",45,"m",null,{"$f":"ROUND(E80*G80,2)","v":0},0]
["03.03.0002"," ","Schnittmassnahmen bis 15 cm in Asphalt, Betonstein und Natursteinpf.","Schnittmassnahmen bis 15 cm in Asphalt, Betonstein und Natursteinpflaster\n\nSchnittmassnahmen, in Asphalt, Betonstein und Natursteinpflasterbelägen, Naßschneidegerät mit diamantbesetztem Sägeblatt, Schnitttiefe bis 15 cm, gerader und schräger Schnitt.",7,"m",null,{"$f":"ROUND(E81*G81,2)","v":0},0]
["03.03.0003"," ","Pflasterfläche aus Betonrechteckpflaster 20/10/8, mit Fase, grau","Pflasterfläche aus Betonrechteckpflaster 20/10/8, mit Fase, grau\n\nPflasterdecke nach Merkblatt für Flächenbefestigungen unter Beachtung der DIN 18318 und ZTV P-STB\nmit Pflaster- und Plattenbelägen und nach\nHerstellerangaben, aus Pflastersteinen aus Beton gem.\nDIN EN 1338/DIN EN 1339, mit Fase, liefern und herstellen;\nProdukt: Betonpflasterstein\nRastermaß: 20 x 10 cm\nSteindicke: 8 cm\nFarbton: naturgrau\nBettung: Brechsand-Splitt 0/5 mm,\nDicke im verdichteten Zustand 4 cm\nFugenbreite: 3 bis 5 mm,\nPflasterfugen einschlämmen mit Natursand 0/3 mm\nVerlegeart: versetzter Reihenverband\neinschl. Anschlussstein 10 x 10 x 8 cm\n\nSteine an Einbauten und Begrenzungen anpassen.\nAbrechnung nach Aufmaß, Lieferschein ist vorzulegen.",225,"m2",null,{"$f":"ROUND(E82*G82,2)","v":0},0]
["03.03.0004"," ","Pflasterfläche Rasenfugenpflaster 20/20/8","Pflasterfläche Rasenfugenpflaster 20/20/8\n\nRasenfugen- / Ökopflaster,\nmit Fase, mit am Stein angeformten 3 cm Abstandhaltern und 0,5 cm Nocken zur Verschiebesicherung,\nfachgerecht verlegen, einschlämmen und abrütteln.\nRastermaß: 20 x 20 cm\nSteindicke: 8 cm\nFarbton: naturgrau\nBettung: Brechsand-Splitt 0/5 mm,\nDicke im verdichteten Zustand 4 cm\nFugenbreite: 3 cm\nFugen mit werkseitig hergestellter Schotterrasen-Fertigmischung gemäß FLL Richtlinien für Planung, Bau und Instandhaltung von begrünbaren Flächenbefestigungen, Ausgabe 2018 befüllen; der Nachweis zur Einhaltung der FLL-Bedingungen ist dem Auftraggeber vor Lieferung vorzulegen;\nVerlegeart: in parallelen Reihen, Kreuzfuge.\n\nAusführungsbereich:\nStellplatzpflasterung Fahrradaufstellfächen\n\n\nAngebotener Hersteller:\n'........................................'\u000b\u000b\u000b\n'........................................'\u000b\u000b\u000b\n'........................................'\u000b\u000b\u000b\n(vom Bieter anzugeben)\n\nangebotenes/r Produkt/Typ:\n'........................................'\u000b\u000b\u000b\n'........................................'\u000b\u000b\u000b\n'........................................'\u000b\u000b\u000b\n(vom Bieter anzugeben)\n\n(Es ist nur ein Produkt / Typ zu benennen. Es ist zwingend erforderlich, dass die Angaben zum \"Hersteller\" und \"Produkt/Typ\" in die dafür vorgesehenen Zeilen vollständig eingetragen werden",6,"m2",null,{"$f":"ROUND(E83*G83,2)","v":0},6,null,null,"\n\n",null,null,"\n\n",null,null,"\n\n",null,null,"\n\n",null,null,"\n\n",null,null,"\n\n"]
["04","1","Allgemeine Ausstattung, Zäune","Allgemeine Ausstattung, Zäune ",null,null,null,{"$f":"SUM(H87:H91)+SUM(H94:H95)","v":0}]
["04.01","I","Hinweis Transportentfernungen","Hinweis Transportentfernungen\n\nDie Transportentfernungen innerhalb der Spielplatzerweiterungsfläche betragen bis zu 50 m.\nDie Transportentfernung für das Aufstellen bauseits gestellter Spielgeräte betragen bis zu 300 m.",null,null,null,null,0]
["04.01","2","Ausstattung für Grünanlagen","Ausstattung für Grünanlagen",null,null,null,{"$f":"SUM(H87:H91)","v":0}]
["04.01.0001"," ","Natursteinblöcke als Treppen- und Stützmauersteinreihe, verfugt","Natursteinblöcke als Treppen- und Stützmauersteinreihe, verfugt\n\nNatursteinblöcke liefern und als Treppen- und Stützmauersteinreihe setzen.\nMaterial: Sandstein Spaltquader, grau-braun-bunt, quaderförmig gestoßen, kantig mit 2 fast ebenen Lagerflächen\nMaße (+/-5 cm): 50 x 50 x 50-70 cm\nSteinhöhe über Ok Gelände: variierend gemäß Ausführungsplan\nüberschlägiger Materialbedarf: 575-625 kg/lfm\n\nScharfe Oberkanten sind nach dem Versetzen mit geeignetem Werkzeug durch Bossieren zu brechen. Die Natursteinblöcke sind auf eine 15-20 cm cm starke Frischbetonschicht gemäß gesonderter Position zu versetzen. Die Steine sind möglichst engfugig zu versetzen und die Fugen mit Mörtel zu verschließen. Dem Fugenmaterial ist ein Elastizitätsbindemittel beizumischen, um Rissbildungen zu verhindern.\n\nEinschließlich erforderlicher Boden- und Belagsarbeiten für Aushub, einschließlich Wiederherstellen der Boden- und Belagsanschlüsse an die Steine,\nüberschüssiges verdrängtes Material laden, abfahren und entsorgen",13,"lfm",null,{"$f":"ROUND(E87*G87,2)","v":0},0]
["04.01.0002"," ","Radparker Stahl 80/10, 850/80/1100 mm, DB 703","Radparker Stahl 80/10, 850/80/1100 mm, DB 703\n\nRadparker liefern und montieren\nMaterial: Stahl, Werkstoff S 235 JR,\nfeuerverzinkt nach DIN EN ISO 1461,\nGrundieren und das Aufbringen einer Deckbeschichtung im Farbton DB 703 Eisenglimmer Feinstruktur matt,\nAbmessungen: Stahl 80/10 L 850 x T 80 x H 1100 mm,\nEcken auf Radius gebogen,\nzum Einbetonieren\nEinbau in Pflasterfläche\nEinbauhöhe über Ok Pflaster + 85 cm\nFundament: je 2 St pro Radparker,\nBeton C16/20, L x B x H 50 x 50 x 50 cm.\n\nEinschließlich erforderlicher Belags- und Bodenarbeiten für Fundamentaushub, einschließlich Betonfundamenten gemäß Herstellerangaben und Wiederherstellen der Boden- und Pflasteranschlüsse an das Betonfundament.\nüberschüssiges verdrängtes Material laden, abfahren und entsorgen\n\nAngebotener Hersteller:\n'........................................'\u000b\u000b\u000b\n'........................................'\u000b\u000b\u000b\n'........................................'\u000b\u000b\u000b\n(vom Bieter anzugeben)\n\nangebotenes/r Produkt/Typ:\n'........................................'\u000b\u000b\u000b\n'........................................'\u000b\u000b\u000b\n'........................................'\u000b\u000b\u000b\n(vom Bieter anzugeben)\n\n(Es ist nur ein Produkt / Typ zu benennen. Es ist zwingend erforderlich, dass die Angaben zum \"Hersteller\" und \"Produkt/Typ\" in die dafür vorgesehenen Zeilen vollständig eingetragen werden.)",2,"St",null,{"$f":"ROUND(E88*G88,2)","v":0},6,null,null,"\n\n",null,null,"\n\n",null,null,"\n\n",null,null,"\n\n",null,null,"\n\n",null,null,"\n\n"]
["04.01.0003"," ","Papierkorb mit Standsäule, Modell Essen","Papierkorb mit Standsäule, Modell Essen\n\nPapierkorb mit Standsäule liefern und einbauen,\neinschließlich erforderlicher Boden-, Fundamentarbeiten sowie Wiederherstellung der Pflasteranschlüsse.\n\nModell: ESSEN-MS-E / Abfallbehälter von Wetz\nInh.ca.50 l; rund; Abdeckung;\nMüllsackhalter-Ring; Standsäule; kompl.\nfeuerverzinkt + beschichtet\nKorpus aus 2 mm Stahlblech, obere Kante umgelegt,\nmit Müllsackhalter-Ring, Inhalt ca. 55 Liter,\n\nStänder aus Rechteckrohr 100/80 mm,\nmit 8 mm dickem Deckel stabil verschweißt\n\nKorpus und Ständer mit Deckel kompl.\nHochtemperatur-feuerverzinkt und pulverbeschichtet,\nBeschichtung in DB 703\n\nEntleerung:\nKorpus kippbar nach vorne mit Anschlag zum leichten\nEntnehmen und Einlegen des Müllsackes;\nVerriegelung mit integriertem Sicherheits-Schnappverschluss,\n8 mm Dreikant\nDurchmesser: 360 mm\nHöhe Korpus: 600 mm\nGesamthöhe: 980 mm\n\nBetonfundamente C 16/20:\n1 Stk 0,40 x 0,40 x 0,60 m\n\nBestell-Nr.: 4324 Essen-MS-E\n\nLiefernachweis:\nWetz\nAußenraum-Elemente\nAm Taubenrain\n35756 Mittenaar\nTel.: 02778/9122-0\nFax: 02778/6301\nE.Mail: info@wetz.de\nWeb: www.wetz",1,"St",null,{"$f":"ROUND(E89*G89,2)","v":0},0]
["04.01.0004"," ","Gatterschranke 360° drehbar, L 1,5 m","Gatterschranke 360° drehbar, Länge 1500 mm,\n\nHöhe über Flur: ca. 950 mm\nSchrankenbaum: Stahlrohr 60 x 40 mm\nDrehpfosten: Stahlrohr Ø 102 mm, feuerverzinkt\nhorizontal drehbar, alle 90° verriegelbar\nVerriegelung selbsteinrastend, (geschlossen oder geöffnet) mit Steckbolzen,\nohne Auflagestütze,\ninkl. Verschlussbolzen 90° arretierbar (verriegelbar)\nmit Dreikantschloss nach DIN 3223 inkl. Dreikantschlüssel,\nFarbe: weiß-rot\nzum Einbetonieren liefern und einbauen.\n\nEinbau in Pflasterfläche\nFundament: Beton C12/15, L x B x H 50 x 50 x 70 cm.\n\nEinschließlich erforderlicher Boden- und Belagsarbeiten für Fundamentaushub, einschließlich Betonfundamenten gemäß Herstellerangaben und Wiederherstellen der Boden- und Pflasteranschlüsse an das Betonfundament.\nüberschüssiges verdrängtes Material laden, abfahren und entsorgen\n\nAngebotener Hersteller:\n'........................................'\u000b\u000b\u000b\n'........................................'\u000b\u000b\u000b\n'........................................'\u000b\u000b\u000b\n(vom Bieter anzugeben)\n\nangebotenes/r Produkt/Typ:\n'........................................'\u000b\u000b\u000b\n'........................................'\u000b\u000b\u000b\n'........................................'\u000b\u000b\u000b\n(vom Bieter anzugeben)\n\n(Es ist nur ein Produkt / Typ zu benennen. Es ist zwingend erforderlich, dass die Angaben zum \"Hersteller\" und \"Produkt/Typ\" in die dafür vorgesehenen Zeilen vollständig eingetragen werden.)",2,"St",null,{"$f":"ROUND(E90*G90,2)","v":0},6,null,null,"\n\n",null,null,"\n\n",null,null,"\n\n",null,null,"\n\n",null,null,"\n\n",null,null,"\n\n"]
["04.01.0005"," ","Wegesperre schwenkbar, zusammenschraubbar","Wegesperre schwenkbar, zusammenschraubbar\n\nmit Dreikantverschluss, inkl. Schrauben\nLänge 250 cm,\nmit Ober- und Knieholm\nHöhe über Flur: ca. 90 cm\n1 ortsfester sowie 1 lösbarer Pfosten aus Vierkantrohr 70 x 70 mm,\n1 Bodenhülse aus Vierkantrohr 80 x 80 mm, Länge: 50 cm,\nQuerholm: 60 x 40 mm.\nfeuerverzinkt und weiß pulverbeschichtet mit rot reflektierenden Leuchtstreifen liefern und einbauen.\n\nEinbau in Pflasterfläche\nFundament: Beton C16/20, L x B x H 50 x 50 x 70 cm.\n\nEinschließlich erforderlicher Boden- und Belagsarbeiten für Fundamentaushub, einschließlich Betonfundamenten gemäß Herstellerangaben und Wiederherstellen der Boden- und Pflasteranschlüsse an das Betonfundament.\nüberschüssiges verdrängtes Material laden, abfahren und entsorgen\n\nAngebotener Hersteller:\n'........................................'\u000b\u000b\u000b\n'........................................'\u000b\u000b\u000b\n'........................................'\u000b\u000b\u000b\n(vom Bieter anzugeben)\n\nangebotenes/r Produkt/Typ:\n'........................................'\u000b\u000b\u000b\n'........................................'\u000b\u000b\u000b\n'........................................'\u000b\u000b\u000b\n(vom Bieter anzugeben)\n\n(Es ist nur ein Produkt / Typ zu benennen. Es ist zwingend erforderlich, dass die Angaben zum \"Hersteller\" und \"Produkt/Typ\" in die dafür vorgesehenen Zeilen vollständig eingetragen werden.)\n",2,"St",null,{"$f":"ROUND(E91*G91,2)","v":0},6,null,null,"\n\n",null,null,"\n\n",null,null,"\n\n",null,null,"\n\n",null,null,"\n\n",null,null,"\n\n"]
["04.02","2","Stahlzäune","Stahlzäune",null,null,null,{"$f":"SUM(H94:H95)","v":0}]
["04.02.0001","I","Hinweise zur Montage der Stabgitterzäune","Hinweise zur Montage der Stabgitterzäune\n\nMontage der Eckausbildung\nEcken und Endfelder sind an der Baustelle einzupassen.\nDabei sind die Schnittstellen zu entgraten und\neventuelle Beschädigungen der Oberfläche mit\nZinkstaubfarbe und mit Kunststofflack zu isolieren\n(siehe Herstellervorschrift).\nDer obere Abschluss erfolgt mit waagerechten Stäben ohne überstehende Gitterstäbe.\nBei Einbau der Zäune mit Neigung in Längsachse (= Gefälle- oder Steigungsstrecke) ist der Höhenversatz von Pfosten zu Pfosten und von Zaunfeld zu Zaunfeld vorzunehmen.",null,null,null,null,0]
["04.02.0001"," ","Stabgitterzaun (H 1,4 m) liefern und montieren","Stabgitterzaun (H 1,4 m) liefern und montieren\n\nStahlmattenzaun, Höhe ca. 1,4 m über OK Gelände,\nfeuerverzinkt und pulverbeschichtet, einschließlich Zaunpfosten\n\nPfosten: 60/40 mm\nMaschenweite 50/200 mm,\nMattenlänge: 2500 mm\nMattenhöhe 1400 mm\nFarbe: anthrazit\nsenkrechte Stäbe 6 mm, waagerechte Stäbe doppelt gelegt\n8 mm, Kreuzungspunkte punktgeschweißt,\noberer und unterer Abschluß der Stabgitter glatt,\neinschl. aller notwendigen Zaunpfosten aus Vierkantrohr mit Stahlabdeckkappe,\nBefestigungsart: von außen mit Klemmleiste verschraubt\n\nEinschl. aller Befestigungselemente liefern und nach\nHerstellerangaben einbauen, einschl. aller Erd - und\nFundamentierungsarbeiten,\n\nBetonfundament C16/20 LxBxH ca. 0,6x0,6x0,8 m,\nOberkante Fundament 10 cm unter GOK,\neinschl. Bodenverdrängung und profilgerechtem Einbau des verdrängten Bodens im Gelände.\n\n\n\nAngebotener Hersteller:\n'........................................'\u000b\u000b\u000b\n'........................................'\u000b\u000b\u000b\n'........................................'\u000b\u000b\u000b\n(vom Bieter anzugeben)\n\nangebotenes/r Produkt/Typ:\n'........................................'\u000b\u000b\u000b\n'........................................'\u000b\u000b\u000b\n'........................................'\u000b\u000b\u000b\n(vom Bieter anzugeben)\n\n(Es ist nur ein Produkt / Typ zu benennen. Es ist zwingend erforderlich, dass die Angaben zum \"Hersteller\" und \"Produkt/Typ\" in die dafür vorgesehenen Zeilen vollständig eingetragen werden.)\n",192,"m",null,{"$f":"ROUND(E94*G94,2)","v":0},6,null,null,"\n\n",null,null,"\n\n",null,null,"\n\n",null,null,"\n\n",null,null,"\n\n",null,null,"\n\n"]
["04.02.0002"," ","Eckverbinder / Zaunverbinder, Mattenhöhe 1400 mm","Eckverbinder / Zaunverbinder, Mattenhöhe 1400 mm\n\nZaunverbindungen,\nmit Eckverbindern für Stabgitterzaunmatten,\nfür Zaunknicke mit Winkeln ungleich 90°,\nnach Herstellervorschrift liefern und herstellen,\nMattenhöhe 1400 mm;\neinschließlich aller erforderlicher Nebenarbeiten;\nDer Einheitspreis ist für die vollständige Verbindung von zwei Zaunmatten zu berechnen.",5,"St",null,{"$f":"ROUND(E95*G95,2)","v":0},0]
["05","1","Ausstattung Spiel und Sport, Schüttgüter","Ausstattung Spiel und Sport, Schüttgüter",null,null,null,{"$f":"SUM(H101:H107)+SUM(H111:H125)","v":0}]
["05.01","I","Hinweis Transportentfernungen","Hinweis Transportentfernungen\n\nDie Transportentfernungen innerhalb der Spielplatzerweiterungsfläche betragen bis zu 50 m.\nDie Transportentfernung für das Aufstellen bauseits gestellter Spielgeräte betragen bis zu 300 m.",null,null,null,null,0]
["05.01","2","Spiel- und Fallschutzflächen, Beläge aus Schüttgütern","Spiel- und Fallschutzflächen, Beläge aus Schüttgütern",null,null,null,{"$f":"SUM(H101:H107)","v":0}]
["05.01.0001","I","Vorbemerkungen Grabeschutz, Spiel- und Fallschutzbeläge aus Schüttgüte","Vorbemerkungen Grabeschutz, Spiel- und Fallschutzbeläge aus Schüttgütern\n\nGrabeschutz (Vliese, Pflaster, Drainbeton), Drainschichten, Spiel- und Fallschutzbeläge aus Schüttgütern (Sand und Holzhäcksel, Perlkies) sind unter Spielgeräten nach dem Aufstellen der Spielgeräte einzubauen.",null,null,null,null,0]
["05.01.0001","I","Untergrundverbesserung durch Geotextilien","Untergrundverbesserung durch Geotextilien\n\nAnmerkung\nGeotextilien sind wasserdurchlässige Vliesstoffe, Gewebe und Verbundstoffe aus synthetischen Fasern, aber keine Dichtungsbahnen oder Folien.\nGeotextilien sollen folgende Funktionen erfüllen:\nTrennen, filtrieren und eine besonders gute Lastverteilung gewährleisten, wenn feinkörnige und grobkörnige Böden bzw. Materialien miteinander in Berührung kommen.\nEine Trennung von Untergrund und Unter- bzw. Oberbau soll den Verbrauch an Schüttmaterial verringern und die Leistungsfähigkeit der Konstruktion erhöhen.\nEine Vermischung von Untergrund und Schüttmaterial soll vermieden werden.\nFeinanteile des Oberbaus müssen filtriert werden, sie sollen sich nicht in darunterliegenden Untergrundabsetzen können. Abschlämmbare Bestandteile sollen nicht in Frostschutzschichten eintreten.\nAus Gründen der Langzeitbeständigkeit dürfen Geotextilien keine chemische oder thermische Bindemittel aufweisen. Sie müssen widerstandsfähig gegen Chemikalien und gegen biologische Einflüsse sein. \nBegriffe, technische Eigenschaften, Anwendungsbereiche richten sich nach dem Merkblatt für die Anwendung von Geotextilien für Straßenbau im Verkehrswesen, Köln.\nDie Verlegung bzw. der Einbau der Geotextilien muß nach den Verarbeitungshinweisen dieses Merkblattes erfolgen, dabei sind die Verlegevorschriften der Herstellerfirmen zu berücksichtigen.",null,null,null,null,0]
["05.01.0001"," ","Planum herstellen für Spielflächen","Planum herstellen für Spielflächen\n\nPlanum herstellen und standfest verdichten\nfür zukünftige Spielflächen\nAuf- und Abtrag: bis 5 cm,\nzulässige Abweichung von der Nennhöhe\n+/- 2 cm,\nüberschüssigen Material im Bereich der Baustelle einplanieren. ",280,"m2",null,{"$f":"ROUND(E101*G101,2)","v":0},0]
["05.01.0002"," ","Filtervlies 150 g/m2 liefern und einbauen","Filtervlies 150 g/m2 liefern und einbauen\n\nGeotextil als Trenn- und Filterschicht einbauen\nVlies, Masse 150 g/m2, Kanten mit 10 cm Überlappung,\nverlegen nach Herstellervorschrift.\nAusführungsbereich: unter Monokornbeton\n\n\nAngebotener Hersteller:\n'........................................'\u000b\u000b\u000b\n'........................................'\u000b\u000b\u000b\n'........................................'\u000b\u000b\u000b\n(vom Bieter anzugeben)\n\nangebotenes/r Produkt/Typ:\n'........................................'\u000b\u000b\u000b\n'........................................'\u000b\u000b\u000b\n'........................................'\u000b\u000b\u000b\n(vom Bieter anzugeben)\n\n(Es ist nur ein Produkt / Typ zu benennen. Es ist zwingend erforderlich, dass die Angaben zum \"Hersteller\" und \"Produkt/Typ\" in die dafür vorgesehenen Zeilen vollständig eingetragen werden.)",38,"m2",null,0,6,null,null,"\n\n",null,null,"\n\n",null,null,"\n\n",null,null,"\n\n",null,null,"\n\n",null,null,"\n\n"]
["05.01.0003"," ","Grabeschutz Monokornbeton 2/16, D = 10 cm","Grabeschutz Monokornbeton 2/16, D = 10 cm\n\nGrabeschutz / Sauberkeitsschicht herstellen\nMaterial: Monokornbeton 2/16,\nEinbau mit entwässerungswirksamen Gefälle\nSchichtdicke: 10 cm\nAusführungsbereich: Sandflächen der Spielflächen\nAusführung nach Aufstellen der Spielanlagen",38,"m2",null,0,0]
["05.01.0004"," ","Drainage- und Sauberkeitsschicht HKS 0/32 D = 10 cm","Drainage- und Sauberkeitsschicht HKS 0/32 D = 10 cm\n\nDrainage- und Sauberkeitsschicht HKS 0/32 liefern und einbauen, \nunter Holzhäcksel außerhalb der Kronentraufe\nTragschichtdicke: 10 cm \nVerformungsmodul EV2: mind. 100 MPa / 100 MN/qm",38,"t",null,0,0]
["05.01.0005"," ","Kiessickerpackung 80x80x80","Kiessickerpackung 80x80x80\n\nKiessickerpackung aus Filterkies\nRheinkies 16/32, herstellen\nAbmessungen : 0,8 x 0,8 x 0,8 m,\n\nallseitige Ummantelung der Kiespackung mit geotextilem Filtervlies, 150 g/m², Kf mind. 0,1 cm/s,\nÜberlappung 10 cm,\nAusführung gem. Ausführungszeichnungen / Anweisung der BÜ,\nUmrechnungsfaktor 1,7 t/m³\nKiesbedarf 0,87 t/St\n\nEinbauort: Sand- und Holzhäckselspielflächen Kita",6,"St",null,0,0]
["05.01.0006"," ","Sand als Fallschutz; Rheinsand 0,2/2","Sand als Fallschutz; Rheinsand 0,2/2\n\nFallschutzsand nach DIN EN 1177 liefern und in Fallschutz- und Spielbereichen gemäß Ausführungsplan profilgerecht einbringen\nSand gemäß DIN EN 1176-1 mit weniger als 5 % Nullanteil, der Nachweis ist vom Auftragnehmer durch Vorlegen der Sieblinie zu erbringen.\nAuftragsdicke als Fallschutz: 40 cm;\nMaterial: Rheinsand 0,2/2\nAusführungsort: Rutsch-Kletterkombination, Tampenschaukel\nAbrechnung nach Lieferschein, Flächenaufmaß ist als Abgleich vorzulegen, Umrechnungsfaktor 1,6 t/m³.",20,"t",null,0,0]
["05.01.0007"," ","Fallschutzhackschnitzel 5-50 mm","Fallschutzhackschnitzel 5-50 mm\n\nTÜV geprüft nach DIN EN 1176-1/ 1177\nlose geschüttet, bestehend aus unbehandelten, geschredderten, trockenen Nadelhölzern\n(Innenfeuchte 15-20 %) ohne Rinden- und Laubanteile liefern und einbringen,\nEinbaudicke: 40 cm,\nAbrechnung nach örtlichem Aufmaß\nAusführungsbereich: Calisthenics-Fläche, Einbau zeitlich koordiniert auf Spielgeräteaufstellung\n\nVor Anlieferung ist dem Auftraggeber ein TÜV-Bericht (DIN 1177, DIN 1176, DIN EN 71/3) und Prüfungszeugnis zum Brandverhalten und zur Pflanzenverträglichkeit des Materials sowie eine Materialprobe vorzulegen.\n\nAngebotener Hersteller:\n'........................................'\u000b\u000b\u000b\n'........................................'\u000b\u000b\u000b\n'........................................'\u000b\u000b\u000b\n(vom Bieter anzugeben)\n\nangebotenes/r Produkt/Typ:\n'........................................'\u000b\u000b\u000b\n'........................................'\u000b\u000b\u000b\n'........................................'\u000b\u000b\u000b\n(vom Bieter anzugeben)\n\n(Es ist nur ein Produkt / Typ zu benennen. Es ist zwingend erforderlich, dass die Angaben zum \"Hersteller\" und \"Produkt/Typ\" in die dafür vorgesehenen Zeilen vollständig eingetragen werden.)",100,"m3",null,0,6,null,null,"\n\n",null,null,"\n\n",null,null,"\n\n",null,null,"\n\n",null,null,"\n\n",null,null,"\n\n"]
["05.02","2","Spiel- und Sportgeräte","Spiel- und Sportgeräte",null,null,null,{"$f":"SUM(H111:H125)","v":0}]
["05.02.0001","I","Spiel- und Sportgeräte, Treffpunkt liefern und aufbauen","Spiel- und Sportgeräte, Treffpunkt liefern und aufbauen\n\nLieferung und Aufbau von Spiel- und Sportgeräten gemäß DIN EN 1176 sowie Treffpunkt der nachfolgenden Positionen wie folgt durchführen:\nSpiel- und Sportgeräte, gemäß DIN EN 1176 sowie Treffpunkt liefern, zum Einbauort transportieren, Deckbeläge, Schichtaufbauten, zu verdrängende Bodenmassen aufnehmen und sortiert seitlich lagern,\nSpiel- und Sportgeräte gemäß Herstellerangaben einbauen, Bodenanschlüsse, Schichtaufbauten und Deckbeläge wieder herstellen, \nüberschüssiges verdrängtes Material laden und seitlich lagern, für Abfuhr gemäß gesonderter Position,\nÜbergabe von Pflege- und Wartungsanleitungen nach Einbau der Geräte an AG / BÜ",null,null,null,null,0]
["05.02.0001","I","Ninja Parcours","Ninja Parcours ",null,null,null,null,0]
["05.02.0001"," ","Sprung- und Balancierblöcke","Sprung- und Balancierblöcke\n\nGerätegröße: L: 1,95 m, B: 0,70 m, H: 0,27 m, max. Fallhöhe (h): 0,60 m\nSicherheitsbereich, einschließlich Gerät: L: ca. 4,95 m, B: ca. 3,70 m\nFundamente: 6 x 300 x 300 x 300 mm, Tiefe: 600 mm\nerforderliche Betonmenge: ca. 0,17 m3 Beton C 20/25\n5 x Standpfosten aus V2A (empty; 40 mm)\n5 x sechseckige, orangene und rutschfeste Polyethylenplatten (18 mm)\n1 x Standpfosten 70 x 70 mm mit Produktschild und -anweisung\nAlle Verbindungsteile meist aus V2A, teilweise feuerverzinkt, Schutzkappen aus PA\n\n\nAngebotener Hersteller:\n'........................................'\u000b\u000b\u000b\n'........................................'\u000b\u000b\u000b\n'........................................'\u000b\u000b\u000b\n(vom Bieter anzugeben)\n\nangebotenes/r Produkt/Typ:\n'........................................'\u000b\u000b\u000b\n'........................................'\u000b\u000b\u000b\n'........................................'\u000b\u000b\u000b\n(vom Bieter anzugeben)\n\n(Es ist nur ein Produkt / Typ zu benennen. Es ist zwingend erforderlich, dass die Angaben zum \"Hersteller\" und \"Produkt/Typ\" in die dafür vorgesehenen Zeilen vollständig eingetragen werden.)",1,"psch",null,{"$f":"ROUND(E111*G111,2)","v":0},6,null,null,"\n\n",null,null,"\n\n",null,null,"\n\n",null,null,"\n\n",null,null,"\n\n",null,null,"\n\n"]
["05.02.0002"," ","Bewegliche Balancierbrücke","Bewegliche Balancierbrücke\n\nGerätegröße: L: 3,74 m, B: 0,68 m, H: 0,37 m, max. Fallhöhe (h): 0,60 m\nSicherheitsbereich, einschließlich Gerät: L: ca. 7,04 m, B: ca. 3,90 m\nFundamente: 2 x 700 x 700 x 500 mm, Tiefe: 700 mm; 1 x 300 x 300 x 300 mm, Tiefe: 600 mm\nerforderliche Betonmenge: ca. 0,5 m3 Beton C 20/25\n2 x Standpfosten (empty; ca. 10 cm) aus verzinktem Stahl mit je 1 x dreieckigen, orangene Start-/ Endplattform aus rutschfeste Polyethylenplatten (18 mm), diese sind verbunden mit 2 x mehrlitzigen, kunststoffummantelten und verzinkten Stahldrahtseilen (empty; 16 mm), auf denen 3 x achteckige, orangene, rutschfeste Polyethylenplatten (18 mm) befestigt sind\n1 x Standpfosten 70 x 70 mm mit Produktschild und -anweisung\nAlle Verbindungsteile meist aus V2A, teilweise feuerverzinkt, Schutzkappen aus PA\n\n\nAngebotener Hersteller:\n'........................................'\u000b\u000b\u000b\n'........................................'\u000b\u000b\u000b\n'........................................'\u000b\u000b\u000b\n(vom Bieter anzugeben)\n\nangebotenes/r Produkt/Typ:\n'........................................'\u000b\u000b\u000b\n'........................................'\u000b\u000b\u000b\n'........................................'\u000b\u000b\u000b\n(vom Bieter anzugeben)\n\n(Es ist nur ein Produkt / Typ zu benennen. Es ist zwingend erforderlich, dass die Angaben zum \"Hersteller\" und \"Produkt/Typ\" in die dafür vorgesehenen Zeilen vollständig eingetragen werden.)\n",1,"St",null,0,6,null,null,"\n\n",null,null,"\n\n",null,null,"\n\n",null,null,"\n\n",null,null,"\n\n",null,null,"\n\n"]
["05.02.0003"," ","Rampe mit Kletterseil","Rampe mit Kletterseil\n\nGerätegröße: L: 3,11 m, B: 1,09 m, H: 1,64 m, max. Fallhöhe (h): 1,65 m\nSicherheitsbereich, einschließlich Gerät: L: ca. 6,30 m, B: ca. 4,27 m\nFundamente: 4 x 300 x 300 x 300 mm, Tiefe: 600 mm\nerforderliche Betonmenge: ca. 0,11 m3 Beton C 20/25\n1 x Kletterseite \"Rampe\" bestehend aus:\n2 x Standpfosten, feuerverzinkter und lackierter Stahl, 95 x 95 mm\n1 x Rutschfeste Polyethylenplatte (12 mm), kohlegrau\n2 x eingebettete orangene Harzkompositplatten (HPL, 13 mm) mit je 6 x ausgesparten Dreiecken\n1 x Kletterseil aus mehrlitzigen, kunststoffummantelten und verzinkten Stahldrahtseilen (empty; 16 mm), 3 x Knotenpunkten aus PA\n1 x Kletterseite \"Netz\" bestehend aus:\n2 x Standpfosten, feuerverzinkter und lackierter Stahl, 95 x 95 mm\n1 x Kletternetz aus mehrlitzigen, kunststoffummantelten und verzinkten Stahldrahtseilen (empty; 16 mm), Seilhalterungen bestehen aus 2 Teilen (einfacher Austausch) Knotenpunkten aus PA\n1 x Haltestange aus V2A\nAlle Verbindungsteile meist aus V2A, teilweise feuerverzinkt, Schutzkappen aus PA\n\n\nAngebotener Hersteller:\n'........................................'\u000b\u000b\u000b\n'........................................'\u000b\u000b\u000b\n'........................................'\u000b\u000b\u000b\n(vom Bieter anzugeben)\n\nangebotenes/r Produkt/Typ:\n'........................................'\u000b\u000b\u000b\n'........................................'\u000b\u000b\u000b\n'........................................'\u000b\u000b\u000b\n(vom Bieter anzugeben)\n\n(Es ist nur ein Produkt / Typ zu benennen. Es ist zwingend erforderlich, dass die Angaben zum \"Hersteller\" und \"Produkt/Typ\" in die dafür vorgesehenen Zeilen vollständig eingetragen werden.)\n",1,"St",null,0,6,null,null,"\n\n",null,null,"\n\n",null,null,"\n\n",null,null,"\n\n",null,null,"\n\n",null,null,"\n\n"]
["05.02.0004"," ","Parcourselement Sprungkraft","Parcourselement Sprungkraft\n\nGerätegröße: L: 0,71 m, B: 0,12 m, H: 3,21 m, max. Fallhöhe (h): 0,60 m\nSicherheitsbereich, einschließlich Gerät: L: 3,71 m, B: 3,13 m\nFundamente: 1 x 300 x 300 x 300 mm, Tiefe: 600 mm\nerforderliche Betonmenge: ca. 0,05 m³ Beton C 20/25\n1 x Standpfosten aus verzinktem und lackiertem Stahl, Ø 125 mm\n3 x kleine, 13 mm starke Harzkompositplatten, temperatur- und witterungsbeständig, mit 3 x Aufhängung aus mehrlitzigem kunstoffummanteltem Stahldrahtseil,\nGestänge aus 3 mm starkem V2A, Ø 40 mm\nVerbindungsteile meist aus V2A, teilweise feuerverzinkt, Schutzkappen aus PA\n\n\nAngebotener Hersteller:\n'........................................'\u000b\u000b\u000b\n'........................................'\u000b\u000b\u000b\n'........................................'\u000b\u000b\u000b\n(vom Bieter anzugeben)\n\nangebotenes/r Produkt/Typ:\n'........................................'\u000b\u000b\u000b\n'........................................'\u000b\u000b\u000b\n'........................................'\u000b\u000b\u000b\n(vom Bieter anzugeben)\n\n(Es ist nur ein Produkt / Typ zu benennen. Es ist zwingend erforderlich, dass die Angaben zum \"Hersteller\" und \"Produkt/Typ\" in die dafür vorgesehenen Zeilen vollständig eingetragen werden.)\n",1,"St",null,0,6,null,null,"\n\n",null,null,"\n\n",null,null,"\n\n",null,null,"\n\n",null,null,"\n\n",null,null,"\n\n"]
["05.02.0005"," ","Hangelbogen","Hangelbogen\n\nGerätegröße: L: 5,24 m, B: 1,07 m, H: 2,93 m, max. Fallhöhe (h): 2,40 m\nSicherheitsbereich, einschließlich Gerät: L: ca. 8,94 m, B: ca. 5,30 m\nFundamente: 2 x 700 x 700 x 500 mm, Tiefe: 700 mm\nerforderliche Betonmenge: ca. 0,5 m³ Beton C 20/25\n1 x Standpfosten aus verzinktem, lackiertem Stahl, Ø 125 mm, mit 1 x Standfläche aus 18 mm starker rutschfester Polyethylenplatte\n1 x Hangelbogen mit Haltegriffen aus 3 mm starkem Edelstahl, Ø 40 mm, H: ca. 2,60 m, L: ca. 4,50 m\nVerbindungsteile sind meist aus V2A, teilweise feuerverzinkt und Schutzkappen aus PA\n\n\nAngebotener Hersteller:\n'........................................'\u000b\u000b\u000b\n'........................................'\u000b\u000b\u000b\n'........................................'\u000b\u000b\u000b\n(vom Bieter anzugeben)\n\nangebotenes/r Produkt/Typ:\n'........................................'\u000b\u000b\u000b\n'........................................'\u000b\u000b\u000b\n'........................................'\u000b\u000b\u000b\n(vom Bieter anzugeben)\n\n(Es ist nur ein Produkt / Typ zu benennen. Es ist zwingend erforderlich, dass die Angaben zum \"Hersteller\" und \"Produkt/Typ\" in die dafür vorgesehenen Zeilen vollständig eingetragen werden.)\n",1,"St",null,0,6,null,null,"\n\n",null,null,"\n\n",null,null,"\n\n",null,null,"\n\n",null,null,"\n\n",null,null,"\n\n"]
["05.02.0006"," ","Reifenparcours","Reifenparcours\n\nGerätegröße: L: 2,35 m, B: 1,33 m, H: 1,15 m, max. Fallhöhe (h): 1,10 m\nSicherheitsbereich, einschließlich Gerät: L: ca. 5,35 m, B: ca. 4,33 m\nFundamente: 9 x 300 x 300 x 300 mm, Tiefe: 600 mm\nEmpfohlene Altersgruppe: Ab 6 Jahre\ngeeignet für öffentliche Kinderspielplätze mit Prüfzertifikat (TÜV) nach DIN EN 1176\nMontagezeit Gerät (ohne Erdarbeiten): 1,00 Std., (2 Mann á 0,5 Std.)\nerforderliche Betonmenge: ca. 0,25 m³ Beton C 20/25\n4 x Standpfosten aus feuerverzinktem Stahl, 70 x 70 mm\n2 x waagrechte V2A-Rohre, dm: 40 mm, Materialstärke: 3 mm\n5 x Ringe aus jeweils einem Stück gefertigtem Polyethylen, Außendurchmesser 70 cm,\nInnendurchmesser 45 cm, Materialstärke: 4 - 5 mm, Farbe orange\n15 x Schaukelketten aus Edelstahl\nVerbindungsteile meist aus V2A, teilweise feuerverzinkt, Schutzkappen aus PA\n\n\nAngebotener Hersteller:\n'........................................'\u000b\u000b\u000b\n'........................................'\u000b\u000b\u000b\n'........................................'\u000b\u000b\u000b\n(vom Bieter anzugeben)\n\nangebotenes/r Produkt/Typ:\n'........................................'\u000b\u000b\u000b\n'........................................'\u000b\u000b\u000b\n'........................................'\u000b\u000b\u000b\n(vom Bieter anzugeben)\n\n(Es ist nur ein Produkt / Typ zu benennen. Es ist zwingend erforderlich, dass die Angaben zum \"Hersteller\" und \"Produkt/Typ\" in die dafür vorgesehenen Zeilen vollständig eingetragen werden.)",1,"St",null,0,6,null,null,"\n\n",null,null,"\n\n",null,null,"\n\n",null,null,"\n\n",null,null,"\n\n",null,null,"\n\n"]
["05.02.0007"," ","Glücksrad","Glücksrad\n\nGerätegröße: L: 0,67 m, B: 0,16 m, H: 1,81 m, max. Fallhöhe (h): 0,60 m\nSicherheitsbereich, einschließlich Gerät: L: ca. 3,67 m, B: ca. 3,16 m\nFundament: 1 x 300 x 300 x 300 mm, Tiefe: 600 mm\nerforderliche Betonmenge: ca. 0,03 m³ Beton C 20/25\n1 x Standpfosten aus feuerverzinktem und lackiertem Stahl, 95 x 95 mm, Schutzkappe aus\nPolyamidspritzguss\n1 x farbige (rot, orange und gelb), 13 mm starke Harzkompositplatten (HPL), 1 x drehbare,\norangene, 13 mm starke Harzkompositplatte (HPL)\nVerbindungsteile meist aus V2A, teilweise feuerverzinkt, Schutzkappen aus PA\n\n\nAngebotener Hersteller:\n'........................................'\u000b\u000b\u000b\n'........................................'\u000b\u000b\u000b\n'........................................'\u000b\u000b\u000b\n(vom Bieter anzugeben)\n\nangebotenes/r Produkt/Typ:\n'........................................'\u000b\u000b\u000b\n'........................................'\u000b\u000b\u000b\n'........................................'\u000b\u000b\u000b\n(vom Bieter anzugeben)\n\n(Es ist nur ein Produkt / Typ zu benennen. Es ist zwingend erforderlich, dass die Angaben zum \"Hersteller\" und \"Produkt/Typ\" in die dafür vorgesehenen Zeilen vollständig eingetragen werden.)",1,"St",null,0,6,null,null,"\n\n",null,null,"\n\n",null,null,"\n\n",null,null,"\n\n",null,null,"\n\n",null,null,"\n\n"]
["05.02.0008"," ","Parcourswand","Parcourswand\n\nGerätegröße: L: 2,04 m, B: 1,69 m, H: 3,50 m, max. Fallhöhe (h): 2,40 m\nSicherheitsbereich, einschließlich Gerät: L: ca. 5,44 m, B: ca. 5,38 m\nFundamente: 7 x 300 x 300 x 300 mm, Tiefe: 600 mm\nerforderliche Betonmenge: ca. 0,19 m³ Beton C 20/25\n1 x Turm, PH: 1,79 m, aus 12,5 mm starken, rutschhemmendem Harzkompositplatten (HPL) mit 4 Standpfosten aus verzinktem und pulverbeschichtetem Stahl, 95 x 95 mm, Absturzsicherung aus Edelstahl, Ø 40 mm, 3 mm stark,\n1 x Rutschmast aus 3 mm starkem Edelstahl, Ø 40 mm,\n1 x Rampe aus 12 mm starkem, rutschfestem Polyethylen\nVerbindungsteile meist aus V2A, teilweise feuerverzinkt und Schutzkappen aus Polyamid\n\n\nAngebotener Hersteller:\n'........................................'\u000b\u000b\u000b\n'........................................'\u000b\u000b\u000b\n'........................................'\u000b\u000b\u000b\n(vom Bieter anzugeben)\n\nangebotenes/r Produkt/Typ:\n'........................................'\u000b\u000b\u000b\n'........................................'\u000b\u000b\u000b\n'........................................'\u000b\u000b\u000b\n(vom Bieter anzugeben)\n\n(Es ist nur ein Produkt / Typ zu benennen. Es ist zwingend erforderlich, dass die Angaben zum \"Hersteller\" und \"Produkt/Typ\" in die dafür vorgesehenen Zeilen vollständig eingetragen werden.)",1,"St",null,0,6,null,null,"\n\n",null,null,"\n\n",null,null,"\n\n",null,null,"\n\n",null,null,"\n\n",null,null,"\n\n"]
["05.02.0009"," ","Sprungbretter canyonartig","Sprungbretter canyonartig\n\nGerätegröße: L: 2,19 m, B: 1,89 m, H: 0,70 m, max. Fallhöhe (h): 0,70 m\nSicherheitsbereich, einschließlich Gerät: L: ca. 5,19 m, B: ca. 4,89 m\nFundamente: 16 x 600 x 300 x 300 mm, Tiefe: 600 mm\nerforderliche Betonmenge: ca. 0,44 m³ Beton C 20/25\n2 x Sprungbretter Länge: 2,22 m bestehend aus je:\n4 x Stützelemente, verzinkter Stahl\n1 x 12 mm dicke und rutschfeste Polyethylenplatte\n9 x eingebettete orangene Harzkompositplatten (HPL) mit je 3 x Handkennzeichnungen\n6 x eingebettete rote Harzkompositplatten (HPL) mit je 3 x Handkennzeichnungen\n3 x eingebettete grüne Harzkompositplatten (HPL) mit je 6 x Handkennzeichnungen\n1 x eingebettete orangene Harzkompositplatten (HPL) mit Richtungspfeilen\nAlle Verbindungsteile meist aus V2A, teilweise feuerverzinkt, Schutzkappen aus PA\n\n\nAngebotener Hersteller:\n'........................................'\u000b\u000b\u000b\n'........................................'\u000b\u000b\u000b\n'........................................'\u000b\u000b\u000b\n(vom Bieter anzugeben)\n\nangebotenes/r Produkt/Typ:\n'........................................'\u000b\u000b\u000b\n'........................................'\u000b\u000b\u000b\n'........................................'\u000b\u000b\u000b\n(vom Bieter anzugeben)\n\n(Es ist nur ein Produkt / Typ zu benennen. Es ist zwingend erforderlich, dass die Angaben zum \"Hersteller\" und \"Produkt/Typ\" in die dafür vorgesehenen Zeilen vollständig eingetragen werden.)",1,"St",null,0,6,null,null,"\n\n",null,null,"\n\n",null,null,"\n\n",null,null,"\n\n",null,null,"\n\n",null,null,"\n\n"]
["05.02.0010"," ","Passwand","Passwand \n\nGerätegröße: L: 2,46 m, B: 1,04 m, H: 3,01 m, max. Fallhöhe (h): 2,32 m \nSicherheitsbereich, einschließlich Gerät: L: ca. 6,43 m, B: ca. 4,94 m \nFundamente: 6 x 300 x 300 x 300 mm, Tiefe: 600 mm; 4 x 400 x 400 x 400 mm, Tiefe: 700 mm \nerforderliche Betonmenge: ca. 0,40 m³ Beton C 20/25\n4 x Graue Standpfosten Ø 125 mm aus lackiertem und verzinktem Stahl, verbunden mit Gestänge aus V2A \n3 x Trespa-Harzkompositplatten (HPL) 13 mm stark, bunte Stufen und Ausschnitte aus rutschfesten Polyethylenplatten 18 mm stark, befestigt mit Ketten aus V2A Schellen aus Polyamidspritzguss \nAlle Verbindungsteile meist aus V2A, teilweise feuerverzinkt, Schutzkappen aus PA\n\n\nAngebotener Hersteller:\n'........................................'\u000b\u000b\u000b\n'........................................'\u000b\u000b\u000b\n'........................................'\u000b\u000b\u000b\n(vom Bieter anzugeben)\n\nangebotenes/r Produkt/Typ:\n'........................................'\u000b\u000b\u000b\n'........................................'\u000b\u000b\u000b\n'........................................'\u000b\u000b\u000b\n(vom Bieter anzugeben)\n\n(Es ist nur ein Produkt / Typ zu benennen. Es ist zwingend erforderlich, dass die Angaben zum \"Hersteller\" und \"Produkt/Typ\" in die dafür vorgesehenen Zeilen vollständig eingetragen werden.)",1,"St",null,0,6,null,null,"\n\n",null,null,"\n\n",null,null,"\n\n",null,null,"\n\n",null,null,"\n\n",null,null,"\n\n"]
["05.02.0011","I","Sitzplatz / Treffpunkt","Sitzplatz / Treffpunkt",null,null,null,null,0]
["05.02.0011"," ","Treffpunkt, mit farbigen Dachflächen","Treffpunkt, mit farbigen Dachflächen \n\nverzinkte und lackierte Ausführung,\nPfostenfarben in RAL- Standardfarbe: 2x RAL 1023 Verkehrsgelb, 3x RAL 2008 Hellrotorange, 2x RAL 6025 Farngrün\nStandpfosten aus Stahlrohren d= 139 mm, h= ca. 3,00 - 5,00 m über OKE,\nStandpfosten außen an den Dachflächen montiert und ca. 50 cm über den Dachflächen überstehend,\nDachflächen 1-lagig aus aufgenietetem Edelstahlblech,\nUnterkonstruktion der Dächer aus Edelstahl-Vierkantrohren, mechanisch poliert,\n3 Stück Dachflächen, Durchmesser 1x 3,00 m, 1x 2,50 m, 1x 2,00 m,\nDachflächen mit jeweils einem farbigen Kunststofffenster in der Dachfläche, Größe ca. 1,20 x 1,00 m, 1,20 x 1,50 m, 1,20 x 2,00 m,\nKunstofffensterfarben: 1x Signalgelb RAL 1003; 1x Reinorange RAL 2004; 1x Signalgrün RAL 6032\nHöhen der Dächer ca. 2,40 - 4,60 m über OKE,\nmit 4 Stück Sitzbänken aus kerngetrennter Douglasie montiert zwischen den Standpfosten\nFundamente: 7 St a 70 x 70 x 60 cm, Beton C 20/25, mit 40 cm Überdeckung \n\n\nAngebotener Hersteller:\n'........................................'\u000b\u000b\u000b\n'........................................'\u000b\u000b\u000b\n'........................................'\u000b\u000b\u000b\n(vom Bieter anzugeben)\n\nangebotenes/r Produkt/Typ:\n'........................................'\u000b\u000b\u000b\n'........................................'\u000b\u000b\u000b\n'........................................'\u000b\u000b\u000b\n(vom Bieter anzugeben)\n\n(Es ist nur ein Produkt / Typ zu benennen. Es ist zwingend erforderlich, dass die Angaben zum \"Hersteller\" und \"Produkt/Typ\" in die dafür vorgesehenen Zeilen vollständig eingetragen werden.)",1,"St",null,{"$f":"ROUND(E122*G122,2)","v":0},6,null,null,"\n\n",null,null,"\n\n",null,null,"\n\n",null,null,"\n\n",null,null,"\n\n",null,null,"\n\n"]
["05.02.0012","I","Bauseits gestellte und zwischengelagerte Spiel- und Sportgeräte aufbau","Bauseits gestellte und zwischengelagerte Spiel- und Sportgeräte aufbauen\n\nDeckbeläge, Schichtaufbauten, zu verdrängende Bodenmassen aufnehmen und sortiert seitlich lagern,\nSpiel- und Sportgeräte gemäß Herstellerangaben einbauen, Bodenanschlüsse, Schichtaufbauten und Deckbeläge wieder herstellen, \nüberschüssiges verdrängtes Material laden und seitlich lagern, für Abfuhr gemäß gesonderter Position,",null,null,null,null,0]
["05.02.0012"," ","Zwischengelagerte Doppelschaukel aufstellen","Zwischengelagerte Doppelschaukel aufstellen\n\nzwischengelagerte Doppelschaukel mit A-Pfosten, einschl. Fundamenten laden, im Baustellenbereich transportieren und wieder aufstellen\nAusbauort: Rasenfläche öffentlicher Spielplatz\nAufstellort: Rasenfläche öffentlicher Spielplatz Armstraße Transportentfernung: ca. 40 m",1,"St",null,{"$f":"ROUND(E124*G124,2)","v":0},0]
["05.02.0013"," ","Sechserwippe einschl. Unterflurverankerung","Sechserwippe (Federwippe) einschl. Unterflurverankerung, ausbauen, laden, transportieren und aufstellen,\nEntnahmegrube mit Oberboden höhengerecht verfüllen, standfest verdichten und mit Rasenmischung einsäen,\nGeräteabmessungen L x B x H: ca. 3,3 x 1,1 x 1,1 m\nAusbauort: Rasenfläche alte Kita Armstraße\nAufstellort: Rasenfläche öffentlicher Spielplatz Armstraße\nTransportentfernung: 250 m\n\nAngebotenes Produkt:\n\n\n\n-------------------------------\n(vom Bieter einzutragen)\n'...'",1,"St",null,{"$f":"ROUND(E125*G125,2)","v":0},1]
["06","1","Bodenarbeiten für vegetationstechnische Zwecke","Bodenarbeiten für vegetationstechnische Zwecke",null,null,null,{"$f":"SUM(H129:H133)","v":0}]
["06.01","I","Hinweis Transportentfernungen","Hinweis Transportentfernungen\n\nDie Transportentfernungen innerhalb der Spielplatzerweiterungsfläche betragen bis zu 50 m.\nDie Transportentfernung für das Aufstellen bauseits gestellter Spielgeräte betragen bis zu 300 m.",null,null,null,null,0]
["06.01","2","Bodenarbeiten für vegetationstechnische Zwecke","Bodenarbeiten für vegetationstechnische Zwecke",null,null,null,{"$f":"SUM(H129:H133)","v":0}]
["06.01.0001"," ","Zertifizierten Oberboden liefern und einbauen","Zertifizierten Oberboden liefern und einbauen\n\nZertifizierten humosen Oberboden liefern, höhengerecht zur\u000bflächigen Andeckung einbauen und planieren.\u000bEinbau in ebenen und flach geneigten Flächen, Böschungsneigung bis 1:4 .\nAnschluss an befestigte Flächen 1-2 cm unter OK Randstein.\nEinschließlich Verzahnung mit dem Unterboden/Füllboden, Verzahnungsdicke 10 cm;\u000b\nHumoser Oberboden: zertifiziert gemäß BBodSchV, gemäß DIN 18915, frei von Steinen, Dauerunkräutern, bodenfremden Stoffen und schädlichen Verunreinigungen\u000bBodengruppe: 3a und 4a nach DIN 18915,\n\nEinbaudicke: im Mittel 15 cm\n\nAbrechnung nach Lieferscheinen/Wiegekarte. Flächenaufmaß ist zum Abgleich vorzulegen, Umrechnungsfaktor 1,6 to/m³.\n\nDas Material muss die Vorsorgewerte der Bundes-Bodenschutz- und Altlastenverordnung einhalten.\nDie entsprechenden Analytiken und Prüfzertifikate sind dem Bodengutachter / der örtl. Bauüberwachung rechtzeitig vor Lieferung, zwecks Freigabe des Materials zum Einbau, vorzulegen. Material, das nicht zweifelsfrei den oben genannten Anforderungen entspricht, wird für den Einbau nicht freigegeben.\nDer Einbau von Mischböden aus Aufbereitungsanlagen ist nicht zulässig.",34,"t",null,{"$f":"ROUND(E129*G129,2)","v":0},0]
["06.01.0002"," ","Schotterrasensubstrat 0/16, D = 10 cm","Schotterrasensubstrat 0/16, D = 10 cm\n\nSchotterrasensubstrat für befahrbare Flächen gemäß FLL Richtlinien für Planung, Bau und Instandhaltung von begrünbaren Flächenbefestigungen, Ausgabe 2018, liefern, einbauen und verdichten;\nEinschließlich Verzahnung mit der Tragschicht;\nMaterial:\nwerkseitig hergestellte Schotterrasensubstratmischung\nKörnung 0-16 mm;\nNutzungskategorie N 1 und N 3 gemäß FLL-Richtlinien für Planung, Bau und Instandhaltung von begrünbaren Flächenbefestigungen\nSchichtdicke im fertigen Zustand: 10 cm\nTragfähigkeit im EV2: 60 MPa/m²\nzu berücksichtigender Verdichtungsfaktor: ca. 1,3\n\nDer Nachweis zur Einhaltung der FLL-Bedingungen ist dem Auftraggeber vor Lieferung vorzulegen;\n\n\nAngebotener Hersteller:\n'........................................'\u000b\u000b\u000b\n'........................................'\u000b\u000b\u000b\n'........................................'\u000b\u000b\u000b\n(vom Bieter anzugeben)\n\nangebotenes/r Produkt/Typ:\n'........................................'\u000b\u000b\u000b\n'........................................'\u000b\u000b\u000b\n'........................................'\u000b\u000b\u000b\n(vom Bieter anzugeben)\n\n(Es ist nur ein Produkt / Typ zu benennen. Es ist zwingend erforderlich, dass die Angaben zum \"Hersteller\" und \"Produkt/Typ\" in die dafür vorgesehenen Zeilen vollständig eingetragen werden.)\n",6,"m3",null,{"$f":"ROUND(E130*G130,2)","v":0},6,null,null,"\n\n",null,null,"\n\n",null,null,"\n\n",null,null,"\n\n",null,null,"\n\n",null,null,"\n\n"]
["06.01.0003"," ","Feinplanum Rasenflächen, Ansaatflächen","Feinplanum Rasenflächen, Ansaatflächen\n\nFeinplanum\nebene und geneigte Flächen bis 1:2,\ngemäß DIN 18917 erstellen;\nzulässige Abweichung von der Ebenheit max. +/- 5 cm,\nzulässige Abweichung bei Anschlüssen max. - 2 cm,\ndie Flächen sind vor der Ansaat feinkrümelig zu lockern, Unrat, Steine mit einem Durchmesser > 5 cm und schwer verrottbare Pflanzenteile aufsammeln, laden, abfahren und entsorgen.\nAnschlüsse an Kanten, Wege- und Platzbeläge: 2 cm unter Belagsoberfläche.\n\nAusführungsbereich: Rasenflächen von Freizeitsport- und Spielflächen, öffentliches Grün",250,"m2",null,{"$f":"ROUND(E131*G131,2)","v":0},0]
["06.01.0004"," ","Feinplanum Schotterrasenflächen","Feinplanum Schotterrasenflächen\n\nzulässige Abweichung von der Ebenheit max. +/- 20 mm, gemäß FLL-Richtlinien für Planung, Bau und Instandhaltung von begrünbaren Flächenbefestigungen",50,"m2",null,{"$f":"ROUND(E132*G132,2)","v":0},0]
["06.01.0005"," ","Feinplanum Pflanzflächen","Feinplanum Pflanzflächen\n\nFeinplanum\nebene und geneigte Flächen bis 1:2,\ngemäß DIN 18916 erstellen;\nzulässige Abweichung von der Ebenheit max. +/- 5 cm,\nzulässige Abweichung bei Anschlüssen max. - 3 cm,\ndie Flächen sind vor der Ansaat feinkrümelig zu lockern, Unrat, Steine mit einem Durchmesser > 5 cm und schwer verrottbare Pflanzenteile aufsammeln, laden, abfahren und entsorgen.\nAnschlüsse an Kanten, Wege- und Platzbeläge 2 cm unter Belagsoberfläche.",30,"m2",null,{"$f":"ROUND(E133*G133,2)","v":0},0]
["07","1","Vegetationstechnische Arbeiten","Vegetationstechnische Arbeiten",null,null,null,{"$f":"SUM(H139:H140)+SUM(H145:H155)+SUM(H157:H163)+SUM(H166:H171)+SUM(H174:H178)","v":0}]
["07.01","I","Hinweis Transportentfernungen","Hinweis Transportentfernungen\nDie Transportentfernungen vom Wendehammer der Ewald-Dutschke-Straße bis zum Spielplatz betragen zwischen 100 und 150 Meter",null,null,null,null,0]
["07.01","I","Normen:","Normen:\n\nFür Saat- und Pflanzarbeiten gelten die DIN 18916 und 18917.\n\nPflanzen- und Saatgutlieferung, Lieferscheine:\nDie ordnungsgemäße Lieferung der Pflanzen und des Saatgutes ist der Bauüberwachung durch Lieferscheine der liefernden Gärtnerei / Baumschule nachzuweisen. Der Lieferschein muss mit Lieferdatum und Bezeichnung des belieferten Bauvorhabens versehen sein. Die gelieferten Pflanzen sind vollständig mit Güteklasse, Art- und Sortennamen, Anzuchtart, -zustand, -form, Größenangabe und Wurzelzustand, bei Gehölzen für die Landschaft zusätzlich auch mit Herkunftsnachweis, im Lieferschein zu bezeichnen. Die BÜ behält sich vor, nicht ordnungsgemäß ausgezeichnete Ware zurück zu weisen.\n\nPflanzen auslegen, Pflanzschnitt:\nDie BÜ behält sich vor, die Pflanzen vor der Pflanzung selbst auszulegen. Eventuell notwendige Standortkorrekturen berechtigen nicht zu Mehrforderungen.\nAlle wurzelnackten Gehölze sind unmittelbar vor der Pflanzung fachgerecht zurückzuschneiden. Der Pflanzschnitt umfasst Wurzeln und Triebe. Die oberirdischen Pflanzenteile sind um ein Drittel bis zwei Drittel ihrer Länge einzukürzen. Der Pflanzschnitt berechtigt nicht zu Mehrforderungen.\nKontrollprüfung nach der Pflanzung, Abnahme:\nNach Abschluss der Pflanzmaßnahme und in sich abgeschlossener Teile der Pflanzmaßnahme erfolgt eine gemeinsame Kontrollprüfung. Sie dient der Feststellung, ob die ausgeführten Leistungen den vereinbarten Leistungen entsprechen. Diese Kontrollprüfung ist keine Abnahme im Sinne der VOB.\n\nEine Abnahme im Sinne der VOB findet nach Abschluss der Fertigstellungspflege statt, wenn der Anwuchserfolg gesichert ist. Die Kontrolle des Anwuchserfolges und des abnahmefähigen Zustandes erfolgt zum Ende der Vegetationsperiode, die auf den Pflanzzeitpunkt folgt.",null,null,null,null,0]
["07.01","2","Ansaaten","Ansaaten",null,null,null,{"$f":"SUM(H139:H140)","v":0}]
["07.01.0001","I","Saatgut:","Saatgut:\n\nDas Saatgut ist vor dem Aussäen noch einmal gründlich zu mischen, um die beim Transportwege üblicherweise eingetretene Entmischung der feineren und gröberen Samen zu beseitigen.",null,null,null,null,0]
["07.01.0001"," ","Rasenansaat RSM 2.3 Gebrauchsrasen, eben und geneigt","Rasenansaat RSM 2.3 Gebrauchsrasen, eben und geneigt\n\nRasenansaat RSM 2.3 Gebrauchsrasen - Spielrasen, liefern und ausbringen,\nin einem Arbeitsgang,\nSaatgutmenge 25 g/m²,\nvor dem Ausbringen Saatgut mischen,\neinsäen und abwalzen,\nebene und bis 1:2 geneigte Flächen\nAbrechnung nach Aufmaß, Original-Lieferschein des Saatgutproduzenten mit Saatgutzusammensetzung  ist vorzulegen.\nAusführungsbereich: Flächen mit humosem Oberboden",250,"m2",null,{"$f":"ROUND(E139*G139,2)","v":0},0]
["07.01.0002"," ","Rasenansaat RSM 5.1 Schotterrasen mit Achillea, eben und geneigt","Rasenansaat RSM 5.1 Schotterrasen mit Achillea, eben und geneigt\n\nRasenansaat RSM 5.1 Schotterrasen, mit Achillea millefolium, liefern und ausbringen,\nin einem Arbeitsgang,\nSaatgutmenge 25 g/m²,\nvor dem Ausbringen Saatgut mischen,\neinsäen und abwalzen,\nebene und bis 1:10 geneigte Flächen\nAbrechnung nach Aufmaß, Original-Lieferschein des Saatgutproduzenten mit Saatgutzusammensetzung  ist vorzulegen.\nAusführungsort: Schotterrasenflächen, Rasenfugenpflaster",56,"m2",null,{"$f":"ROUND(E140*G140,2)","v":0},0]
["07.02","2","Gehölze","Gehölze",null,null,null,{"$f":"SUM(H145:H155)","v":0}]
["07.02.0001","I","Gehölze der nachfolgenden Positionen liefern und pflanzen","Gehölze der nachfolgenden Positionen liefern und pflanzen",null,null,null,null,0]
["07.02.0001","I","Ausführungshinweise zur Pflanzung:","Ausführungshinweise zur Pflanzung:\n\nPflanzlöcher und -gruben sind in 1,5 facher Wurzel- oder Ballenbreite auszuheben. Beim Aushub sind Oberboden und übriger Aushub zu trennen, Oberboden ist als oberste Schicht bei der Pflanzung wieder einzubringen.\nverfilzte Wurzelballen von Containerpflanzen sind seitlich zu schlitzen\nDas Herstellen von Gießrändern an Stammbüschen, Solitärs, Halb- und Hochstämmen sowie das Einschlämmen verfüllten Bodens, Ebnen, Säubern und Lockern der Flächen sind Bestandteil der Pflanzleistung.\n\nGehölze der nachfolgenden Positionen liefern und pflanzen:",null,null,null,null,0]
["07.02.0001","I","Bäume","Bäume",null,null,null,null,0]
["07.02.0001"," ","Acer platanoides \"Royal Red\" H, 3xv m. B., StU 16-18 cm","Acer platanoides \"Royal Red\" H, 3xv m. B., StU 16-18 cm",2,"St",null,{"$f":"ROUND(E145*G145,2)","v":0},0]
["07.02.0002","I","höhere Sträucher","höhere Sträucher",null,null,null,null,0]
["07.02.0002"," ","Amelanchier lamarckii, Sol., 3xv., m. B.,175-200, 5-7 Grundtriebe","Amelanchier lamarckii, Sol., 3xv., m. B.,175-200, 5-7 Grundtriebe",3,"St",null,{"$f":"ROUND(E147*G147,2)","v":0},0]
["07.02.0003"," ","Cornus mas Sol. 3xv m B 150-175 cm","Cornus mas\nSol. 3xv m B 150-175 cm",2,"St",null,{"$f":"ROUND(E148*G148,2)","v":0},0]
["07.02.0004"," ","Corylus maxima \"Purpurea\" Sol. 3xv m B 150-200 cm","Corylus maxima \"Purpurea\"\nSol. 3xv m B 150-200 cm",3,"St",null,{"$f":"ROUND(E149*G149,2)","v":0},0]
["07.02.0005"," ","Viburnum opulus, Sol., 3xv., m. B., 150-200","Viburnum opulus, Sol., 3xv., m. B., 150-200",1,"St",null,{"$f":"ROUND(E150*G150,2)","v":0},0]
["07.02.0006","I","Bodendecker","Bodendecker",null,null,null,null,0]
["07.02.0006","I","Ausführungshinweise zur Pflanzung:","Ausführungshinweise zur Pflanzung:\n\nDie zu pflanzenden Bodendecker, Stauden und Gräser sind vor der Pflanzung auszutopfen und die oberen 2 -3 cm des Topfsubstrates sind zwecks Unkrautbeseitigung abzurandeln. Verfilzte Wurzelballen sind seitlich zu schlitzen.\nBeim Auslegen von Stauden sind Gerüstbildner zuerst auszulegen, anschließend Gruppenstauden, Füllpflanzen und Bodendecker.\nAngießen, Ebnen, Säubern und Lockern der Flächen nach Pflanzung sind Bestandteil der Pflanzleistung\n\nBodendecker der nachfolgen den Positionen liefern und pflanzen:",null,null,null,null,0]
["07.02.0006"," ","Lonicera nitida \"Maigrün\" m Tb / Co 40-60 cm","Lonicera nitida \"Maigrün\" m Tb / Co 40-60 cm",90,"St",null,{"$f":"ROUND(E153*G153,2)","v":0},0]
["07.02.0007"," ","Potentilla fruticosa \"Goldfinger\" v Str Co 40 - 60 cm","Potentilla fruticosa \"Goldfinger\" v Str Co 40 - 60 cm",40,"St",null,{"$f":"ROUND(E154*G154,2)","v":0},0]
["07.02.0008"," ","Spiraea bumalda \"Anthony Waterer\" v Str Co 30-40 cm","Spiraea bumalda \"Anthony Waterer\" v Str Co 30-40 cm",40,"St",null,{"$f":"ROUND(E155*G155,2)","v":0},0]
["07.03","2","Pflanzverankerungen, Bewässerungszubehör, Düngung, Stammschutz, Mulch","Pflanzverankerungen, Bewässerungszubehör, Düngung, Stammschutz, Mulch",null,null,null,{"$f":"SUM(H157:H163)","v":0}]
["07.03.0001"," ","Gehölzverankerung niedriger Dreibock","Gehölzverankerung niedriger Dreibock\n\nHalben Dreibock aus drei Holzpfählen mit stabilisierender Querverlattung, liefern und fachgerecht inkl. 3 Baumbindungen herstellen, vorhalten und nach Entwicklungspflege vollständig rückbauen,\nAnbindehöhe maximal 10 cm unterhalb des Pfahlendes\n\nBäume: Hochstämme bis zu 25 cm StU\nPfähle: Fichtenholz, gekegelt und gespitzt, Oberfläche\ngeschält und nicht behandelt, Länge 160 cm, Zopfstärke 8 cm\nQuerlatten: Fichtenholz, geschält, nicht behandelt, halbrund, 40/60 mm\nBindung: Gurtanbindung am Pfahl vernagelt\nHöhe: ca. 80 cm über Geländeoberkante,\n\neinschl. Entsorgung gemäß den gesetzlichen Bestimmungen inkl. Transportkosten und Entsorgungsgebühren\n\nAbrechnung nach Aufmaß 70 % nach Errichtung,\u000b30 % nach Rückbau.",2,"St",null,{"$f":"ROUND(E157*G157,2)","v":0},0]
["07.03.0002"," ","Kunststoff-Gießrand","Kunststoff-Gießrand\n\nMaterial: LDPE,\nBreite 30 cm\nStärke 3 mm\nFarbe: grün\nliefern und einbauen,\nals Ergänzung zu Gießrand aus Bodenaushub;\n\nEinbindetiefe in Boden: 10 cm\noberirdischer Kunststoffgießrand: 20 cm\nDurchmesser des Gießrandes: 80 cm\nBedarf: bis 2,5 m / Solitär\n\nSchließen des Gießrandes durch Clip\nAusführungsbereich: Solitärgehölze",11,"St",null,{"$f":"ROUND(E158*G158,2)","v":0},0]
["07.03.0003"," ","Bäume, Solitärgehölze düngen, 120 g/St, Startdüngung","Bäume, Solitärgehölze düngen, 120 g/St, Startdüngung\n\nBäume und Sträucher düngen,\nOrganischer NPK-Dünger mit:\n7% N, 4% P2O5, 0,5% K2O,\n120 g/St als Startdüngung;\nDünger gleichmäßig ausstreuen,\nleicht einarbeiten und kräftig wässern;\n\nAusführungsbereich: Bäume, Solitärgehölze, Bambus\n\nAngebotener Hersteller:\n'........................................'\u000b\u000b\u000b\n'........................................'\u000b\u000b\u000b\n'........................................'\u000b\u000b\u000b\n(vom Bieter anzugeben)\n\nangebotenes/r Produkt/Typ:\n'........................................'\u000b\u000b\u000b\n'........................................'\u000b\u000b\u000b\n'........................................'\u000b\u000b\u000b\n(vom Bieter anzugeben)\n\n(Es ist nur ein Produkt / Typ zu benennen. Es ist zwingend erforderlich, dass die Angaben zum \"Hersteller\" und \"Produkt/Typ\" in die dafür vorgesehenen Zeilen vollständig eingetragen werden.)",1.3,"kg",null,{"$f":"ROUND(E159*G159,2)","v":0},6,null,null,"\n\n",null,null,"\n\n",null,null,"\n\n",null,null,"\n\n",null,null,"\n\n",null,null,"\n\n"]
["07.03.0004"," ","Stauden-/Gehölzflächen düngen, 120 g/m², Startdüngung","Stauden-/Gehölzflächen düngen, 120 g/m², Startdüngung\n\nStaudenflächen und flächige Gehölzpflanzungen düngen,\nOrganischer NPK-Dünger mit:\n7% N, 4% P2O5, 0,5% K2O,\n120 g/m² als Startdüngung;\nDünger gleichmäßig ausstreuen,\nleicht einarbeiten und kräftig wässern;\n\nAusführungsbereich: Bodendeckerflächen\n\nAngebotener Hersteller:\n'........................................'\u000b\u000b\u000b\n'........................................'\u000b\u000b\u000b\n'........................................'\u000b\u000b\u000b\n(vom Bieter anzugeben)\n\nangebotenes/r Produkt/Typ:\n'........................................'\u000b\u000b\u000b\n'........................................'\u000b\u000b\u000b\n'........................................'\u000b\u000b\u000b\n(vom Bieter anzugeben)\n\n(Es ist nur ein Produkt / Typ zu benennen. Es ist zwingend erforderlich, dass die Angaben zum \"Hersteller und \"Produkt/Typ in die dafür vorgesehenen Zeilen vollständig eingetragen werden.)",3.4,"kg",null,{"$f":"ROUND(E160*G160,2)","v":0},6,null,null,"\n\n",null,null,"\n\n",null,null,"\n\n",null,null,"\n\n",null,null,"\n\n",null,null,"\n\n"]
["07.03.0005","I","Anmerkung zu Stammschutzfarbe","Anmerkung zu Stammschutzfarbe\n\nZum Schutz vor abiotischen Stammschäden, Sonnennekrosen, Frostrissen und als thermischer Langzeitschutz sind Hauptäste ab Ø 28 mm sowie die Stammrinde bei neu gepflanzten Gehölzen mit Stammschutzfarbe zu versehen. Vor dem Auftragen der Stammschutzfarbe ist der Stamm mittels eines Schleifvlieses zu reinigen und mit einem Voranstrich zu versehen. Im Anschluss daran wird die Stammschutzfarbe aufgetragen.\n\nDer Voranstrich sollte ein wässriges Copolymer als Bindemittel enthalten. Die Inhaltsstoffe der Stammschutzfarbe sind organische und anorganische Bindemittel, weiße Lebensmittelfarbe, Siliziumdioxid, Wasser, Emulgatoren und Beistoffe wie Quarzsand (zwingend vorgeschriebener Bestandteil).\nDie Materialien müssen atmungsaktiv und ungiftig für Mensch und Tier sein, dürfen keine Pflanzenschutzmittel enthalten und müssen rückstandsfrei abbaubar sein durch Mikroben.\n\nAufwandmenge:\nStU cm \t\tVerbrauch in g \tStreichfläche m²\n14 - 16\t\t250 - 300 \t\t\t0,3\n16 - 18\t\t280 - 340 \t\t\t0,34\n18 - 20\t\t320 - 380 \t\t\t0,38\n20 - 22\t\t350 - 420\t\t\t0,42\n22 - 24\t\t380 - 460\t\t\t0,64\n24 - 26\t\t420 - 500\t\t\t0,5\n\nDie angegebene Verbrauchsmenge bezieht sich auf eine behandelte Stammhöhe von ca. 2m (Kronenansatz).\nDer Anteil vom Voranstrich zur Stammschutzfarbe beträgt ca. 20-25%.",null,null,null,null,0]
["07.03.0005"," ","Thermischen Rindenschutz herstellen","Thermischen Rindenschutz herstellen\n\nThermischen Rindenschutz\ninkl. Voranstrich zum Schutz der Rinde am Stamm\nund Hauptästen von Hochstämmen und Solitären gegen Verdunstung und Sonneneinstrahlung herstellen;\nStamm mittels Schleifvlies reinigen und mit dem Voranstrich einstreichen,\nThermischen Rindenschutz durch Anstrich der mehrjährig haftenden Stammschutzfarbe, vom Stammfuß bis in die Hauptäste anlegen,\nDie Farbe wird ab > 10°C auf den trockenen Stamm, bzw. auf dem Voranstrich mit einem Pinsel aufgetragen;\nArbeitshöhe: bis 250cm\nStammumfang: bis 25cm\nAusführungsbereiche: Solitärbäume.\n\nAngebotener Hersteller:\n'........................................'\u000b\u000b\u000b\n'........................................'\u000b\u000b\u000b\n'........................................'\u000b\u000b\u000b\n(vom Bieter anzugeben)\n\nangebotenes/r Produkt/Typ:\n'........................................'\u000b\u000b\u000b\n'........................................'\u000b\u000b\u000b\n'........................................'\u000b\u000b\u000b\n(vom Bieter anzugeben)\n\n(Es ist nur ein Produkt / Typ zu benennen. Es ist zwingend erforderlich, dass die Angaben zum \"Hersteller und \"Produkt/Typ in die dafür vorgesehenen Zeilen vollständig eingetragen werden.)\n",2,"St",null,{"$f":"ROUND(E162*G162,2)","v":0},6,null,null,"\n\n",null,null,"\n\n",null,null,"\n\n",null,null,"\n\n",null,null,"\n\n",null,null,"\n\n"]
["07.03.0006"," ","Gehölzflächen mulchen, Rindenmulch 0/20","Gehölzflächen mulchen, Rindenmulch 0/20\n\nRindenmulch 0/20,\nliefern und gleichmäßig auftragen,\nSchichtdicke im Mittel, im gesetzten Zustand : 5 cm;\nAusführungsbereiche: Bodendeckerpflanzungen",30,"m2",null,{"$f":"ROUND(E163*G163,2)","v":0},0]
["07.04","2","Fertigstellungspflege","Fertigstellungspflege",null,null,null,{"$f":"SUM(H166:H171)","v":0}]
["07.04.0001","I","Art und Zeitpunkt von Pflegemaßnahmen:","Art und Zeitpunkt von Pflegemaßnahmen:\n\nDie Fertigstellungspflege dient zur Erzielung eines abnahmefähigen Zustandes. Sie endet mit der vegetationstechnischen Abnahme.\nDie Entwicklungspflege dient zur Erzielung eines funktionsfähigen Zustandes. Sie schließt an die Fertigstellungspflege an und ist für einen 1 jährigen Zeitraum vorgesehen.\nDie erforderlichen Teilleistungen sind ohne besondere Anordnung rechtzeitig auszuführen. Der Beginn eines jeden Arbeitsganges ist dem Auftraggeber und der zuständigen Bauüberwachung rechtzeitig schriftlich anzuzeigen.\nDer Auftragnehmer ist verpflichtet, im Fall besonders ungünstiger Witterungseinflüsse oder dergleichen - im Zuge seiner Pflegearbeiten - alle betrieblichen zumutbaren Maßnahmen zu ergreifen, um eventuelle Schäden durch höhere Gewalt abzuwenden.\nDiese Maßnahmen sind im Sinne aller Leistungen nach VOB/C, DIN 18920 sowie DIN 18916, 18917 und 18918 in eigener Verantwortung und jeweils zur rechten Zeit nach anerkannten Regeln der Landschaftsgärtnerei, ohne besondere Aufforderung durch den Bauherrn oder die Bauüberwachung, durchzuführen.\nBeabsichtigt der Auftragnehmer Schäden durch höhere Gewalt oder Dritte geltend zu machen, so hat er dafür den Nachweis zu erbringen.\nChemische Unkrautbekämpfung ist nicht gestattet. Pflanzenschutzmittel sind nur nach Absprache mit der zuständigen Bauüberwachung anzuwenden.\n\nHinweise:\nDie Fertigstellungspflege beginnt nach Pflanzung und Herstellung der Vegetationsflächen und endet mit der 1. Abnahme der Vegetationsflächen (Vegetationstechnische Abnahme) und ist in allen neu angelegten Grünflächen durchzuführen. Neben den DIN-gerechten Anforderungen sind auch durch Dritte beschädigte Pflanzen auszutauschen bzw. Vegetationsflächen wieder herzustellen. Die Kostenübernahme regelt sich dabei nach der FLL-Broschüre \"Bauverträge im GaLaBau -Ergänzungsbedarf zur VOB\"!\nDie vorgesehenen Arbeitsgänge sind Regelannahmen. Die Vorbemerkungen zu Art und Zeitpunkt der Pflege sind zu beachten.\n\nZeitraum der Fertigstellungspflege:\nDie Fertigstellungspflege umfasst für Gehölz- und Staudenpflanzungen den Zeitraum der gesamten Vegetationsperiode nach der Pflanzung.",null,null,null,null,0]
["07.04.0001"," ","Gemulchte Gehölzflächen säubern, 6x","Gemulchte Gehölzflächen säubern, 6x\n\nPflanzflächen von Gehölzen, gemulcht,\nvon Unkraut, Steinen ab 5 cm\nDurchmesser und sonstigem Unrat säubern,\ntrockene Triebe abschneiden\nDauerunkräuter sind mit Wurzeln auszustechen.\nWurzelunkräuter und Unrat aufsammeln, laden, abfahren und entsorgen.\nBearbeitungstiefe der jeweiligen Pflanzenart anpassen.\n\nAnzahl der Arbeitsgänge: 6\n\nAusführungsort: Bodendeckerflächen\n\nJeweilige vorherige Meldung an die BÜ ist erforderlich,\nDie Abrechnung erfolgt nach den tatsächlich gemeldeten und ausgeführten Arbeitsgängen.\nDer Einheitspreis ist für 6 Arbeitsgänge je m² zu berechnen. Mehr- oder Minderleistungen werden linear entsprechend der anerkannten Anzahl der Arbeitsgänge abgerechnet.",30,"m2",null,{"$f":"ROUND(E166*G166,2)","v":0},0]
["07.04.0002"," ","Rasenflächen schneiden, 6x","Rasenflächen schneiden, 6x\n\nPflege für Rasenflächen durchführen.\nEbene und geneigte Flächen bis 1:2,\nPflegeumfang: Fläche mähen bei einer maximalen Wuchshöhe von 6-10 cm. Rückschnitt auf maximal 4 cm Schnittlänge. Verklumptes Mähgut ist aufzusammeln, zu laden, abzufahren und zu entsorgen.\nSchutt und Unrat vor dem Mähen aufsammeln, laden, abfahren und entsorgen.\nEinschließlich Säubern der Nebenflächen von Mähgut.\n\nAnzahl der Arbeitsgänge: 6\n\nJeweilige vorherige Meldung an die BÜ ist erforderlich,\nDie Abrechnung erfolgt nach den tatsächlich gemeldeten und ausgeführten Arbeitsgängen.\nDer Einheitspreis ist für 6 Arbeitsgänge je m² zu berechnen. Mehr- oder Minderleistungen werden linear entsprechend der anerkannten Anzahl der Arbeitsgänge abgerechnet.",170,"m2",null,0,0]
["07.04.0003"," ","Einzelbäume pflegen, 6 Arbeitsgänge","Einzelbäume pflegen, 6 Arbeitsgänge\n\nUnerwünschten Aufwuchs,\nan Einzelbäumen,\nohne Beschädigung des Stammes,\nabtrennen,\nohne Bodenlockerung;\nabgetrennter Aufwuchs ist zu entfernen, Anschlussflächen von Mahdgut säubern;\nGehölze ggf. richten und antreten, lose Bindungen an\nBaumpfählen wieder befestigen, zu schwach austreibende\nGehölze zurückschneiden, abgestorbene Gehölze nach\ngemeinsamer Feststellung entfernen;\nFläche von Unrat säubern, anfallender Unrat wird Eigentum des AN und ist fachgerecht zu entsorgen;\n\nAusführungsbereiche: Einzelgehölze\n\nAnzahl der Arbeitsgänge: 6\n\nJeweilige vorherige Meldung an die BÜ ist erforderlich. Die Abrechnung erfolgt nach den tatsächlich gemeldeten und ausgeführten Arbeitsgängen.\nDer Einheitspreis ist für 6 Arbeitsgänge je Baum zu berechnen. Mehr- oder Minderleistungen werden linear entsprechend der anerkannten Anzahl der Arbeitsgänge abgerechnet.",2,"St",null,0,0]
["07.04.0004"," ","Einzelbäume wässern, 15 Arbeitsgänge","Einzelbäume wässern, 15 Arbeitsgänge\n\nEinzelbäume,\neinzeln und in Reihenpflanzung,\nin Abhängigkeit von natürlichen Niederschlagsbedingungen,\nbei Trockenheit,\nwässern,\nWasser liefern;\n\nMindestwassermenge je Arbeitsgang: 75 l/Baum\n\nAnzahl der Arbeitsgänge: 15\n\nJeweilige vorherige Meldung an die BÜ ist erforderlich. Die Abrechnung erfolgt nach den tatsächlich gemeldeten und ausgeführten Arbeitsgängen.\n\nDer Einheitspreis ist für 15 Arbeitsgänge je Baum zu berechnen. Mehr- oder Minderleistungen werden linear entsprechend der anerkannten Anzahl der Arbeitsgänge abgerechnet.",2,"St",null,0,0]
["07.04.0005"," ","Solitärsträucher wässern, 15 Arbeitsgänge","Solitärsträucher wässern, 15 Arbeitsgänge\n\nSolitärsträucher,\nin Abhängigkeit von natürlichen Niederschlagsbedingungen,\nbei Trockenheit,\ndurchdringend gemäß DIN 18916 wässern,\nBewässerung mit Schlauch,\nWasser liefern;\n\nMindestwassermenge je Arbeitsgang: 35 l/Strauch.\n\nAusführungsbereich: Solitärsträucher, Bambus\n\nAnzahl der Arbeitsgänge: 15\n\nJeweilige vorherige Meldung an die BÜ ist erforderlich. Die Abrechnung erfolgt nach den tatsächlich gemeldeten und ausgeführten Arbeitsgängen.\nDer Einheitspreis ist für 15 Arbeitsgänge je Strauch zu berechnen. Mehr- oder Minderleistungen werden linear entsprechend der anerkannten Anzahl der Arbeitsgänge abgerechnet.",9,"St",null,0,0]
["07.04.0006"," ","Bodendecker wässern, 15 Arbeitsgänge","Bodendecker wässern, 15 Arbeitsgänge\n\nPflanzflächen,\nmit Bodendeckern\nin Abhängigkeit von natürlichen Niederschlagsbedingungen,\nbei Trockenheit,\ndurchdringend gemäß DIN 18916 wässern,\nBewässerung mit Schlauch,\nWasser liefern;\n\nMindestwassermenge je Arbeitsgang 24 l/m²\n\nAusführungsbereiche: Bodendeckerpflanzungen\n\nAnzahl der Arbeitsgänge: 15\n\nJeweilige vorherige Meldung an die BÜ ist erforderlich,\nDie Abrechnung erfolgt nach den tatsächlich gemeldeten und ausgeführten Arbeitsgängen.\nDer Einheitspreis ist für 15 Wässerungsgänge je m² zu berechnen. Mehr- oder Minderleistungen werden linear entsprechend der anerkannten Anzahl der Arbeitsgänge abgerechnet.",30,"m2",null,0,0]
["07.05","2","Entwicklungspflege","Entwicklungspflege",null,null,null,{"$f":"SUM(H174:H178)","v":0}]
["07.05.0001","I","Art und Zeitpunkt von Pflegemaßnahmen:","Art und Zeitpunkt von Pflegemaßnahmen:\n\nDie Fertigstellungspflege dient zur Erzielung eines abnahmefähigen Zustandes. Sie endet mit der vegetationstechnischen Abnahme.\nDie Entwicklungspflege dient zur Erzielung eines funktionsfähigen Zustandes. Sie schließt an die Fertigstellungspflege an und ist für einen 3 jährigen Zeitraum vorgesehen.\nDie erforderlichen Teilleistungen sind ohne besondere Anordnung rechtzeitig auszuführen. Der Beginn eines jeden Arbeitsganges ist dem Auftraggeber und der zuständigen Bauüberwachung rechtzeitig schriftlich anzuzeigen.\nDer Auftragnehmer ist verpflichtet, im Fall besonders ungünstiger Witterungseinflüsse oder dergleichen - im Zuge seiner Pflegearbeiten - alle betrieblichen zumutbaren Maßnahmen zu ergreifen, um eventuelle Schäden durch höhere Gewalt abzuwenden.\nDiese Maßnahmen sind im Sinne aller Leistungen nach VOB/C, DIN 18920 sowie DIN 18916, 18917 und 18918 in eigener Verantwortung und jeweils zur rechten Zeit nach anerkannten Regeln der Landschaftsgärtnerei, ohne besondere Aufforderung durch den Bauherrn oder die Bauüberwachung, durchzuführen.\nBeabsichtigt der Auftragnehmer Schäden durch höhere Gewalt oder Dritte geltend zu machen, so hat er dafür den Nachweis zu erbringen.\nChemische Unkrautbekämpfung ist nicht gestattet. Pflanzenschutzmittel sind nur nach Absprache mit der zuständigen Bauüberwachung anzuwenden.\n\nHinweise:\nDie vorgesehenen Arbeitsgänge sind Regelannahmen. Die Vorbemerkungen zu Art und Zeitpunkt der Pflege sind zu beachten.\n\nZeitraum der Entwicklungspflege:\nDie Fertigstellungspflege umfasst für Gehölz- und Staudenpflanzungen einen 2jährigen Zeitraum, beginnend nach der Fertigstellungspflege.",null,null,null,null,0]
["07.05.0001"," ","Gemulchte Gehölzflächen säubern, 9x","Gemulchte Gehölzflächen säubern, 9x\n\nPflanzflächen von Gehölzen, gemulcht,\nvon Unkraut, Steinen ab 5 cm\nDurchmesser und sonstigem Unrat säubern,\ntrockene Triebe abschneiden\nDauerunkräuter sind mit Wurzeln auszustechen.\nWurzelunkräuter und Unrat aufsammeln, laden, abfahren und entsorgen.\nBearbeitungstiefe der jeweiligen Pflanzenart anpassen.\n\nAnzahl der Arbeitsgänge: 9\n\nAusführungsort: Bodendeckerflächen\n\nJeweilige vorherige Meldung an die BÜ ist erforderlich,\nDie Abrechnung erfolgt nach den tatsächlich gemeldeten und ausgeführten Arbeitsgängen.\nDer Einheitspreis ist für 9 Arbeitsgänge je m² zu berechnen. Mehr- oder Minderleistungen werden linear entsprechend der anerkannten Anzahl der Arbeitsgänge abgerechnet.",30,"m2",null,{"$f":"ROUND(E174*G174,2)","v":0},0]
["07.05.0002"," ","Einzelbäume pflegen, 6 Arbeitsgänge","Einzelbäume pflegen, 6 Arbeitsgänge\n\nUnerwünschten Aufwuchs,\nan Einzelbäumen,\nohne Beschädigung des Stammes,\nabtrennen,\nohne Bodenlockerung;\nabgetrennter Aufwuchs ist zu entfernen, Anschlussflächen von Mahdgut säubern;\nGehölze ggf. richten und antreten, lose Bindungen an\nBaumpfählen wieder befestigen, zu schwach austreibende\nGehölze zurückschneiden, abgestorbene Gehölze nach\ngemeinsamer Feststellung entfernen;\nFläche von Unrat säubern, anfallender Unrat wird Eigentum des AN und ist fachgerecht zu entsorgen;\n\nAusführungsbereiche: Einzelgehölze\n\nAnzahl der Arbeitsgänge: 6\n\nJeweilige vorherige Meldung an die BÜ ist erforderlich. Die Abrechnung erfolgt nach den tatsächlich gemeldeten und ausgeführten Arbeitsgängen.\nDer Einheitspreis ist für 6 Arbeitsgänge je Baum zu berechnen. Mehr- oder Minderleistungen werden linear entsprechend der anerkannten Anzahl der Arbeitsgänge abgerechnet.",2,"St",null,{"$f":"ROUND(E175*G175,2)","v":0},0]
["07.05.0003"," ","Einzelbäume wässern, 20 Arbeitsgänge","Einzelbäume wässern, 20 Arbeitsgänge\n\nEinzelbäume,\neinzeln und in Reihenpflanzung,\nin Abhängigkeit von natürlichen Niederschlagsbedingungen,\nbei Trockenheit,\nwässern,\nWasser liefern;\n\nMindestwassermenge je Arbeitsgang: 75 l/Baum\n\nAnzahl der Arbeitsgänge: 20\n\nJeweilige vorherige Meldung an die BÜ ist erforderlich. Die Abrechnung erfolgt nach den tatsächlich gemeldeten und ausgeführten Arbeitsgängen.\n\nDer Einheitspreis ist für 20 Arbeitsgänge je Baum zu berechnen. Mehr- oder Minderleistungen werden linear entsprechend der anerkannten Anzahl der Arbeitsgänge abgerechnet.",2,"St",null,{"$f":"ROUND(E176*G176,2)","v":0},0]
["07.05.0004"," ","Solitärsträucher wässern, 20 Arbeitsgänge","Solitärsträucher wässern, 20 Arbeitsgänge\n\nSolitärsträucher,\nin Abhängigkeit von natürlichen Niederschlagsbedingungen,\nbei Trockenheit,\ndurchdringend gemäß DIN 18916 wässern,\nBewässerung mit Schlauch,\nWasser liefern;\n\nMindestwassermenge je Arbeitsgang: 35 l/Strauch.\n\nAusführungsbereich: Solitärsträucher, Bambus\n\nAnzahl der Arbeitsgänge: 20\n\nJeweilige vorherige Meldung an die BÜ ist erforderlich. Die Abrechnung erfolgt nach den tatsächlich gemeldeten und ausgeführten Arbeitsgängen.\nDer Einheitspreis ist für 20 Arbeitsgänge je Strauch zu berechnen. Mehr- oder Minderleistungen werden linear entsprechend der anerkannten Anzahl der Arbeitsgänge abgerechnet.",9,"St",null,{"$f":"ROUND(E177*G177,2)","v":0},0]
["07.05.0005"," ","Bodendecker wässern, 20 Arbeitsgänge","Bodendecker wässern, 20 Arbeitsgänge\n\nPflanzflächen,\nmit Bodendeckern,\nin Abhängigkeit von natürlichen Niederschlagsbedingungen,\nbei Trockenheit,\ndurchdringend gemäß DIN 18916 wässern,\nBewässerung mit Schlauch,\nWasser liefern;\n\nMindestwassermenge je Arbeitsgang 24 l/m²\n\nAusführungsbereiche: Stauden- & Bodendeckerpflanzungen\n\nAnzahl der Arbeitsgänge: 20\n\nJeweilige vorherige Meldung an die BÜ ist erforderlich,\nDie Abrechnung erfolgt nach den tatsächlich gemeldeten und ausgeführten Arbeitsgängen.\nDer Einheitspreis ist für 20 Wässerungsgänge je m² zu berechnen. Mehr- oder Minderleistungen werden linear entsprechend der anerkannten Anzahl der Arbeitsgänge abgerechnet.",30,"m2",null,{"$f":"ROUND(E178*G178,2)","v":0},0]